Workbook

Sheet Presentación (hidden)
C1: Mi hypervinculo
C3: Ejercicio 1
B4: Datos: | C4: Lista de inscripciones y notas
B6: 1 | C6: Armar una tabla dinamica mostrando el numero de personas por empresa y por día
B7: 2 | C7: Ordenar la tabla por orden alfabetico de empresa
B8: 3 | C8: Expresar los resultados en porcentaje referentes a todas las inscripciones, a las inscripciones por el día, a las inscripciones para la empresa
B9: 4 | C9: Obtener una lista de las personas del jueves. De las personas de GyM el miercoles
C10: ¿Que pasa si una persona cambia de día?
B11: 5 | C11: cambiar la tabla para mostrar el promedio de notas por empresa y día
B12: 6 | C12: Usar el concepto de pagina para una tabla dinamica que muestra las notas por empresa (Pagina) y persona y tema
B13: 7 | C13: Obtener los promedios por persona, por empresa por los dos temas
B14: 8 | C14: Crear un campo con el promedio de las dos notas
C15: En el campo gran total, se ve la suma del campo calculado (y no el promedio) ¿Cual podria ser la solución para tener el promedio total incluyendo los dos tema y todos los participantes?
C17: Ejercicio 2
B18: Datos | C18: lista de personas
C19: lista de material
C20: lista de pedidos
B22: 1 | C22: Completar la tabla de los pedidos ayudandose de la lista de personas y de la lista de material (función BUSCAR,LOOKUP). Para simplificar tu trabajo definir nombres para los diferentes campos de datos.
C23: ¿Esta correcta la tabla? ¿Que pasó con los post-it 5x8?
B24: 2 | C24: Armar una tabla dinamica mostrando de montos de los pedidos por empresa y por articulo
B25: 3 | C25: Modificar la tabla par ver la repartición de gastos en %
B26: 4 | C26: Modificar la tabla para ver las cantidades
C27: ¿Quiénes pidieron disket en la unidad D?
B28: 5 | C28: Agrupar los post-it en una clase y llamarla "Post-it"
B29: 6 | C29: Hacer doble clic sobre la casilla "Post-it", ¿que pasa?
B30: 7 | C30: Modificar la tabla para tener como parametos verticales las unidades, y horizontalmente los meses.visualiza los datos como "% del total", como "diferencia del primer mes", como "% de diferencia del primer mes"
B31: 8 | C31: Modificar la tabla para tener como parametos verticales las unidades y los funciones, y horizontalmente los meses y los articulos

Sheet datos (hidden)
A1: Regreso a la lista de tareas
B3: Vendedor | C3: Sucursal | F3: Código | G3: Artículo | H3: Unidad | I3: P. Unit.
B4: Josué | C4: Lima | F4: D1-001 | G4: CD-R Sony 700 MB | H4: Caja x 10 | I4: 2.5
B5: Elías | C5: Lima | F5: L1-001 | G5: Lápiz Nº 2 Faber Castel | H5: Caja x 12 | I5: 3
B6: Daniel | C6: Miraflores | F6: P1-001 | G6: Post-it 5X5 | H6: Bolsa x 10 | I6: 12
B7: Alberto | C7: Miraflores | F7: P2-001 | G7: Post-it 5X8 | H7: Bolsa x 10 | I7: 15
B8: Fabián | C8: Surco | F8: P3-001 | G8: Post-it 3X3 | H8: Bolsa x 10 | I8: 10
B9: Piero | C9: Surco | F9: S1-001 | G9: Sobre Manila A4 | H9: Ciento | I9: 25

Sheet Ejercicio 1
A9: Nº Pedido | B9: Fecha | C9: Mes | D9: Sucursal | E9: Vendedor | F9: Código | G9: Artículo | H9: Unidad | I9: Precio Unitario | J9: Cantidad | K9: Ventas | L9: Comisión
A10: 3 | B10: 2013-07-18 | C10: =B10 -> 2013-07-18 | D10: Lima | E10: Josué | F10: S1-001 | G10: Sobre Manila A4 | H10: Ciento | I10: 25 | J10: 50 | K10: =I10*J10 -> 1250 | L10: =IF(J10>=30,K10*4%,K10*3%) -> 50
A11: 16 | B11: 2013-11-25 | C11: 2013-11-25 | D11: Miraflores | E11: Daniel | F11: S1-001 | G11: Sobre Manila A4 | H11: Ciento | I11: 25 | J11: 50 | K11: 1250 | L11: 50
A12: 17 | B12: 2013-12-05 | C12: 2013-12-05 | D12: Miraflores | E12: Alberto | F12: S1-001 | G12: Sobre Manila A4 | H12: Ciento | I12: 25 | J12: 50 | K12: 1250 | L12: 50
A13: 15 | B13: 2013-11-15 | C13: 2013-11-15 | D13: Miraflores | E13: Alberto | F13: P2-001 | G13: Post-it 5X8 | H13: Bolsa x 10 | I13: 15 | J13: 70 | K13: 1050 | L13: 42
A14: 8 | B14: 2013-09-06 | C14: 2013-09-06 | D14: Lima | E14: Elías | F14: S1-001 | G14: Sobre Manila A4 | H14: Ciento | I14: 25 | J14: 40 | K14: 1000 | L14: 40
A15: 10 | B15: 2013-09-26 | C15: 2013-09-26 | D15: Miraflores | E15: Daniel | F15: S1-001 | G15: Sobre Manila A4 | H15: Ciento | I15: 25 | J15: 40 | K15: 1000 | L15: 40
A16: 12 | B16: 2013-10-16 | C16: 2013-10-16 | D16: Miraflores | E16: Daniel | F16: S1-001 | G16: Sobre Manila A4 | H16: Ciento | I16: 25 | J16: 40 | K16: 1000 | L16: 40
A17: 18 | B17: 2013-12-15 | C17: 2013-12-15 | D17: Miraflores | E17: Daniel | F17: S1-001 | G17: Sobre Manila A4 | H17: Ciento | I17: 25 | J17: 40 | K17: 1000 | L17: 40
A18: 24 | B18: 2013-02-13 | C18: 2013-02-13 | D18: Surco | E18: Fabián | F18: S1-001 | G18: Sobre Manila A4 | H18: Ciento | I18: 25 | J18: 40 | K18: 1000 | L18: 40
A19: 25 | B19: 2013-02-23 | C19: 2013-02-23 | D19: Surco | E19: Piero | F19: S1-001 | G19: Sobre Manila A4 | H19: Ciento | I19: 25 | J19: 40 | K19: 1000 | L19: 40
A20: 26 | B20: 2013-03-05 | C20: 2013-03-05 | D20: Surco | E20: Fabián | F20: S1-001 | G20: Sobre Manila A4 | H20: Ciento | I20: 25 | J20: 40 | K20: 1000 | L20: 40
A21: 12 | B21: 2013-10-16 | C21: 2013-10-16 | D21: Miraflores | E21: Daniel | F21: P2-001 | G21: Post-it 5X8 | H21: Bolsa x 10 | I21: 15 | J21: 60 | K21: 900 | L21: 36
A22: 18 | B22: 2013-12-15 | C22: 2013-12-15 | D22: Miraflores | E22: Daniel | F22: P2-001 | G22: Post-it 5X8 | H22: Bolsa x 10 | I22: 15 | J22: 60 | K22: 900 | L22: 36
A23: 4 | B23: 2013-07-28 | C23: 2013-07-28 | D23: Lima | E23: Elías | F23: S1-001 | G23: Sobre Manila A4 | H23: Ciento | I23: 25 | J23: 30 | K23: 750 | L23: 30
A24: 5 | B24: 2013-08-07 | C24: 2013-08-07 | D24: Lima | E24: Josué | F24: S1-001 | G24: Sobre Manila A4 | H24: Ciento | I24: 25 | J24: 30 | K24: 750 | L24: 30
A25: 7 | B25: 2013-08-27 | C25: 2013-08-27 | D25: Lima | E25: Josué | F25: S1-001 | G25: Sobre Manila A4 | H25: Ciento | I25: 25 | J25: 30 | K25: 750 | L25: 30
A26: 9 | B26: 2013-09-16 | C26: 2013-09-16 | D26: Miraflores | E26: Alberto | F26: S1-001 | G26: Sobre Manila A4 | H26: Ciento | I26: 25 | J26: 30 | K26: 750 | L26: 30
A27: 11 | B27: 2013-10-06 | C27: 2013-10-06 | D27: Miraflores | E27: Alberto | F27: S1-001 | G27: Sobre Manila A4 | H27: Ciento | I27: 25 | J27: 30 | K27: 750 | L27: 30
A28: 21 | B28: 2013-01-14 | C28: 2013-01-14 | D28: Surco | E28: Piero | F28: P2-001 | G28: Post-it 5X8 | H28: Bolsa x 10 | I28: 15 | J28: 50 | K28: 750 | L28: 30
A29: 21 | B29: 2013-01-14 | C29: 2013-01-14 | D29: Surco | E29: Piero | F29: S1-001 | G29: Sobre Manila A4 | H29: Ciento | I29: 25 | J29: 30 | K29: 750 | L29: 30
A30: 3 | B30: 2013-07-18 | C30: 2013-07-18 | D30: Lima | E30: Josué | F30: P2-001 | G30: Post-it 5X8 | H30: Bolsa x 10 | I30: 15 | J30: 40 | K30: 600 | L30: 24
A31: 4 | B31: 2013-07-28 | C31: 2013-07-28 | D31: Lima | E31: Elías | F31: P2-001 | G31: Post-it 5X8 | H31: Bolsa x 10 | I31: 15 | J31: 40 | K31: 600 | L31: 24
A32: 8 | B32: 2013-09-06 | C32: 2013-09-06 | D32: Lima | E32: Elías | F32: P1-001 | G32: Post-it 5X5 | H32: Bolsa x 10 | I32: 12 | J32: 50 | K32: 600 | L32: 24
A33: 10 | B33: 2013-09-26 | C33: 2013-09-26 | D33: Miraflores | E33: Daniel | F33: P2-001 | G33: Post-it 5X8 | H33: Bolsa x 10 | I33: 15 | J33: 40 | K33: 600 | L33: 24
A34: 11 | B34: 2013-10-06 | C34: 2013-10-06 | D34: Miraflores | E34: Alberto | F34: P2-001 | G34: Post-it 5X8 | H34: Bolsa x 10 | I34: 15 | J34: 40 | K34: 600 | L34: 24
A35: 12 | B35: 2013-10-16 | C35: 2013-10-16 | D35: Miraflores | E35: Daniel | F35: P1-001 | G35: Post-it 5X5 | H35: Bolsa x 10 | I35: 12 | J35: 50 | K35: 600 | L35: 24
A36: 15 | B36: 2013-11-15 | C36: 2013-11-15 | D36: Miraflores | E36: Alberto | F36: P1-001 | G36: Post-it 5X5 | H36: Bolsa x 10 | I36: 12 | J36: 50 | K36: 600 | L36: 24
A37: 16 | B37: 2013-11-25 | C37: 2013-11-25 | D37: Miraflores | E37: Daniel | F37: P1-001 | G37: Post-it 5X5 | H37: Bolsa x 10 | I37: 12 | J37: 50 | K37: 600 | L37: 24
A38: 18 | B38: 2013-12-15 | C38: 2013-12-15 | D38: Miraflores | E38: Daniel | F38: P1-001 | G38: Post-it 5X5 | H38: Bolsa x 10 | I38: 12 | J38: 50 | K38: 600 | L38: 24
A39: 23 | B39: 2013-02-03 | C39: 2013-02-03 | D39: Surco | E39: Piero | F39: P2-001 | G39: Post-it 5X8 | H39: Bolsa x 10 | I39: 15 | J39: 40 | K39: 600 | L39: 24
A40: 25 | B40: 2013-02-23 | C40: 2013-02-23 | D40: Surco | E40: Piero | F40: P1-001 | G40: Post-it 5X5 | H40: Bolsa x 10 | I40: 12 | J40: 50 | K40: 600 | L40: 24
A41: 26 | B41: 2013-02-02 | C41: 2013-02-02 | D41: Surco | E41: Fabián | F41: P1-001 | G41: Post-it 5X5 | H41: Bolsa x 10 | I41: 12 | J41: 50 | K41: 600 | L41: 24
A42: 7 | B42: 2013-08-27 | C42: =B42 -> 2013-08-27 | D42: Lima | E42: Josué | F42: P3-001 | G42: Post-it 3X3 | H42: Bolsa x 10 | I42: 10 | J42: 55 | K42: =I42*J42 -> 550 | L42: =IF(J42>=30,K42*4%,K42*3%) -> 22
A43: 7 | B43: 2013-08-27 | C43: 2013-08-27 | D43: Lima | E43: Josué | F43: P1-001 | G43: Post-it 5X5 | H43: Bolsa x 10 | I43: 12 | J43: 45 | K43: 540 | L43: 21.6
A44: 3 | B44: 2013-07-18 | C44: 2013-07-18 | D44: Lima | E44: Josué | F44: P3-001 | G44: Post-it 3X3 | H44: Bolsa x 10 | I44: 10 | J44: 50 | K44: 500 | L44: 20
A45: 6 | B45: 2013-08-17 | C45: 2013-08-17 | D45: Lima | E45: Elías | F45: S1-001 | G45: Sobre Manila A4 | H45: Ciento | I45: 25 | J45: 20 | K45: 500 | L45: 15
A46: 19 | B46: 2013-12-25 | C46: 2013-12-25 | D46: Surco | E46: Piero | F46: S1-001 | G46: Sobre Manila A4 | H46: Ciento | I46: 25 | J46: 20 | K46: 500 | L46: 15
A47: 22 | B47: 2013-01-24 | C47: 2013-01-24 | D47: Surco | E47: Fabián | F47: S1-001 | G47: Sobre Manila A4 | H47: Ciento | I47: 25 | J47: 20 | K47: 500 | L47: 15
A48: 23 | B48: 2013-02-03 | C48: 2013-02-03 | D48: Surco | E48: Piero | F48: S1-001 | G48: Sobre Manila A4 | H48: Ciento | I48: 25 | J48: 20 | K48: 500 | L48: 15
A49: 27 | B49: 2013-03-14 | C49: 2013-03-14 | D49: Surco | E49: Piero | F49: S1-001 | G49: Sobre Manila A4 | H49: Ciento | I49: 25 | J49: 20 | K49: 500 | L49: 15
A50: 29 | B50: 2013-04-03 | C50: 2013-04-03 | D50: Surco | E50: Piero | F50: S1-001 | G50: Sobre Manila A4 | H50: Ciento | I50: 25 | J50: 20 | K50: 500 | L50: 15
A51: 30 | B51: 2013-04-13 | C51: 2013-04-13 | D51: Surco | E51: Fabián | F51: S1-001 | G51: Sobre Manila A4 | H51: Ciento | I51: 25 | J51: 20 | K51: 500 | L51: 15
A52: 5 | B52: 2013-08-07 | C52: 2013-08-07 | D52: Lima | E52: Josué | F52: P1-001 | G52: Post-it 5X5 | H52: Bolsa x 10 | I52: 12 | J52: 40 | K52: 480 | L52: 19.2
A53: 14 | B53: 2013-11-05 | C53: 2013-11-05 | D53: Miraflores | E53: Daniel | F53: P1-001 | G53: Post-it 5X5 | H53: Bolsa x 10 | I53: 12 | J53: 40 | K53: 480 | L53: 19.2
A54: 21 | B54: 2013-01-14 | C54: 2013-01-14 | D54: Surco | E54: Piero | F54: P1-001 | G54: Post-it 5X5 | H54: Bolsa x 10 | I54: 12 | J54: 40 | K54: 480 | L54: 19.2
A55: 30 | B55: 2013-04-13 | C55: 2013-04-13 | D55: Surco | E55: Fabián | F55: P1-001 | G55: Post-it 5X5 | H55: Bolsa x 10 | I55: 12 | J55: 40 | K55: 480 | L55: 19.2
A56: 6 | B56: 2013-08-17 | C56: 2013-08-17 | D56: Lima | E56: Elías | F56: P2-001 | G56: Post-it 5X8 | H56: Bolsa x 10 | I56: 15 | J56: 30 | K56: 450 | L56: 18
A57: 17 | B57: 2013-12-05 | C57: 2013-12-05 | D57: Miraflores | E57: Alberto | F57: P2-001 | G57: Post-it 5X8 | H57: Bolsa x 10 | I57: 15 | J57: 30 | K57: 450 | L57: 18
A58: 24 | B58: 2013-02-13 | C58: 2013-02-13 | D58: Surco | E58: Fabián | F58: P2-001 | G58: Post-it 5X8 | H58: Bolsa x 10 | I58: 15 | J58: 30 | K58: 450 | L58: 18
A59: 27 | B59: 2013-03-14 | C59: 2013-03-14 | D59: Surco | E59: Piero | F59: P2-001 | G59: Post-it 5X8 | H59: Bolsa x 10 | I59: 15 | J59: 30 | K59: 450 | L59: 18
A60: 8 | B60: 2013-09-06 | C60: 2013-09-06 | D60: Lima | E60: Elías | F60: P3-001 | G60: Post-it 3X3 | H60: Bolsa x 10 | I60: 10 | J60: 40 | K60: 400 | L60: 16
A61: 9 | B61: 2013-09-16 | C61: 2013-09-16 | D61: Miraflores | E61: Alberto | F61: P3-001 | G61: Post-it 3X3 | H61: Bolsa x 10 | I61: 10 | J61: 40 | K61: 400 | L61: 16
A62: 16 | B62: 2013-11-25 | C62: 2013-11-25 | D62: Miraflores | E62: Daniel | F62: P3-001 | G62: Post-it 3X3 | H62: Bolsa x 10 | I62: 10 | J62: 40 | K62: 400 | L62: 16
A63: 17 | B63: 2013-12-05 | C63: 2013-12-05 | D63: Miraflores | E63: Alberto | F63: P3-001 | G63: Post-it 3X3 | H63: Bolsa x 10 | I63: 10 | J63: 40 | K63: 400 | L63: 16
A64: 25 | B64: 2013-02-23 | C64: 2013-02-23 | D64: Surco | E64: Piero | F64: P3-001 | G64: Post-it 3X3 | H64: Bolsa x 10 | I64: 10 | J64: 40 | K64: 400 | L64: 16
A65: 26 | B65: 2013-03-05 | C65: 2013-03-05 | D65: Surco | E65: Fabián | F65: P3-001 | G65: Post-it 3X3 | H65: Bolsa x 10 | I65: 10 | J65: 40 | K65: 400 | L65: 16
A66: 1 | B66: 2013-06-28 | C66: 2013-06-28 | D66: Lima | E66: Josué | F66: P1-001 | G66: Post-it 5X5 | H66: Bolsa x 10 | I66: 12 | J66: 30 | K66: 360 | L66: 14.4
A67: 2 | B67: 2013-07-08 | C67: 2013-07-08 | D67: Lima | E67: Elías | F67: P1-001 | G67: Post-it 5X5 | H67: Bolsa x 10 | I67: 12 | J67: 30 | K67: 360 | L67: 14.4
A68: 3 | B68: 2013-07-18 | C68: 2013-07-18 | D68: Lima | E68: Josué | F68: P1-001 | G68: Post-it 5X5 | H68: Bolsa x 10 | I68: 12 | J68: 30 | K68: 360 | L68: 14.4
A69: 4 | B69: 2013-07-28 | C69: 2013-07-28 | D69: Lima | E69: Elías | F69: P1-001 | G69: Post-it 5X5 | H69: Bolsa x 10 | I69: 12 | J69: 30 | K69: 360 | L69: 14.4
A70: 6 | B70: 2013-08-17 | C70: 2013-08-17 | D70: Lima | E70: Elías | F70: P1-001 | G70: Post-it 5X5 | H70: Bolsa x 10 | I70: 12 | J70: 30 | K70: 360 | L70: 14.4
A71: 9 | B71: 2013-09-16 | C71: 2013-09-16 | D71: Miraflores | E71: Alberto | F71: P1-001 | G71: Post-it 5X5 | H71: Bolsa x 10 | I71: 12 | J71: 30 | K71: 360 | L71: 14.4
A72: 10 | B72: 2013-09-26 | C72: 2013-09-26 | D72: Miraflores | E72: Daniel | F72: P1-001 | G72: Post-it 5X5 | H72: Bolsa x 10 | I72: 12 | J72: 30 | K72: 360 | L72: 14.4
A73: 11 | B73: 2013-10-06 | C73: 2013-10-06 | D73: Miraflores | E73: Alberto | F73: P1-001 | G73: Post-it 5X5 | H73: Bolsa x 10 | I73: 12 | J73: 30 | K73: 360 | L73: 14.4
A74: 23 | B74: 2013-02-03 | C74: =B74 -> 2013-02-03 | D74: Surco | E74: Piero | F74: P1-001 | G74: Post-it 5X5 | H74: Bolsa x 10 | I74: 12 | J74: 30 | K74: =I74*J74 -> 360 | L74: =IF(J74>=30,K74*4%,K74*3%) -> 14.4
A75: 28 | B75: 2013-03-24 | C75: 2013-03-24 | D75: Surco | E75: Fabián | F75: P1-001 | G75: Post-it 5X5 | H75: Bolsa x 10 | I75: 12 | J75: 30 | K75: 360 | L75: 14.4
A76: 1 | B76: 2013-06-28 | C76: 2013-06-28 | D76: Lima | E76: Josué | F76: P3-001 | G76: Post-it 3X3 | H76: Bolsa x 10 | I76: 10 | J76: 30 | K76: 300 | L76: 12
A77: 1 | B77: 2013-06-28 | C77: 2013-06-28 | D77: Lima | E77: Josué | F77: P2-001 | G77: Post-it 5X8 | H77: Bolsa x 10 | I77: 15 | J77: 20 | K77: 300 | L77: 9
A78: 2 | B78: 2013-07-08 | C78: 2013-07-08 | D78: Lima | E78: Elías | F78: P2-001 | G78: Post-it 5X8 | H78: Bolsa x 10 | I78: 15 | J78: 20 | K78: 300 | L78: 9
A79: 5 | B79: 2013-08-07 | C79: 2013-08-07 | D79: Lima | E79: Josué | F79: P3-001 | G79: Post-it 3X3 | H79: Bolsa x 10 | I79: 10 | J79: 30 | K79: 300 | L79: 12
A80: 5 | B80: 2013-08-07 | C80: 2013-08-07 | D80: Lima | E80: Josué | F80: P2-001 | G80: Post-it 5X8 | H80: Bolsa x 10 | I80: 15 | J80: 20 | K80: 300 | L80: 9
A81: 7 | B81: 2013-08-27 | C81: 2013-08-27 | D81: Lima | E81: Josué | F81: P2-001 | G81: Post-it 5X8 | H81: Bolsa x 10 | I81: 15 | J81: 20 | K81: 300 | L81: 9
A82: 8 | B82: 2013-09-06 | C82: 2013-09-06 | D82: Lima | E82: Elías | F82: P2-001 | G82: Post-it 5X8 | H82: Bolsa x 10 | I82: 15 | J82: 20 | K82: 300 | L82: 9
A83: 9 | B83: 2013-09-16 | C83: 2013-09-16 | D83: Miraflores | E83: Alberto | F83: P2-001 | G83: Post-it 5X8 | H83: Bolsa x 10 | I83: 15 | J83: 20 | K83: 300 | L83: 9
A84: 13 | B84: 2013-10-26 | C84: 2013-10-26 | D84: Miraflores | E84: Alberto | F84: P3-001 | G84: Post-it 3X3 | H84: Bolsa x 10 | I84: 10 | J84: 30 | K84: 300 | L84: 12
A85: 13 | B85: 2013-10-26 | C85: 2013-10-26 | D85: Miraflores | E85: Alberto | F85: P2-001 | G85: Post-it 5X8 | H85: Bolsa x 10 | I85: 15 | J85: 20 | K85: 300 | L85: 9
A86: 16 | B86: 2013-11-25 | C86: 2013-11-25 | D86: Miraflores | E86: Daniel | F86: P2-001 | G86: Post-it 5X8 | H86: Bolsa x 10 | I86: 15 | J86: 20 | K86: 300 | L86: 9
A87: 18 | B87: 2013-12-15 | C87: 2013-12-15 | D87: Miraflores | E87: Daniel | F87: P3-001 | G87: Post-it 3X3 | H87: Bolsa x 10 | I87: 10 | J87: 30 | K87: 300 | L87: 12
A88: 19 | B88: 2013-12-25 | C88: 2013-12-25 | D88: Surco | E88: Piero | F88: P2-001 | G88: Post-it 5X8 | H88: Bolsa x 10 | I88: 15 | J88: 20 | K88: 300 | L88: 9
A89: 21 | B89: 2013-01-14 | C89: 2013-01-14 | D89: Surco | E89: Piero | F89: P3-001 | G89: Post-it 3X3 | H89: Bolsa x 10 | I89: 10 | J89: 30 | K89: 300 | L89: 12
A90: 24 | B90: 2013-02-13 | C90: 2013-02-13 | D90: Surco | E90: Fabián | F90: P3-001 | G90: Post-it 3X3 | H90: Bolsa x 10 | I90: 10 | J90: 30 | K90: 300 | L90: 12
A91: 27 | B91: 2013-03-14 | C91: 2013-03-14 | D91: Surco | E91: Piero | F91: P3-001 | G91: Post-it 3X3 | H91: Bolsa x 10 | I91: 10 | J91: 30 | K91: 300 | L91: 12
A92: 29 | B92: 2013-04-03 | C92: 2013-04-03 | D92: Surco | E92: Piero | F92: P2-001 | G92: Post-it 5X8 | H92: Bolsa x 10 | I92: 15 | J92: 20 | K92: 300 | L92: 9
A93: 30 | B93: 2013-04-13 | C93: 2013-04-13 | D93: Surco | E93: Fabián | F93: P3-001 | G93: Post-it 3X3 | H93: Bolsa x 10 | I93: 10 | J93: 30 | K93: 300 | L93: 12
A94: 30 | B94: 2013-04-13 | C94: 2013-04-13 | D94: Surco | E94: Fabián | F94: P2-001 | G94: Post-it 5X8 | H94: Bolsa x 10 | I94: 15 | J94: 20 | K94: 300 | L94: 9
A95: 1 | B95: 2013-06-28 | C95: 2013-06-28 | D95: Lima | E95: Josué | F95: S1-001 | G95: Sobre Manila A4 | H95: Ciento | I95: 25 | J95: 10 | K95: 250 | L95: 7.5
A96: 2 | B96: 2013-07-08 | C96: 2013-07-08 | D96: Lima | E96: Elías | F96: S1-001 | G96: Sobre Manila A4 | H96: Ciento | I96: 25 | J96: 10 | K96: 250 | L96: 7.5
A97: 13 | B97: 2013-10-26 | C97: 2013-10-26 | D97: Miraflores | E97: Alberto | F97: S1-001 | G97: Sobre Manila A4 | H97: Ciento | I97: 25 | J97: 10 | K97: 250 | L97: 7.5
A98: 28 | B98: 2013-03-24 | C98: 2013-03-24 | D98: Surco | E98: Fabián | F98: S1-001 | G98: Sobre Manila A4 | H98: Ciento | I98: 25 | J98: 10 | K98: 250 | L98: 7.5
A99: 17 | B99: 2013-12-05 | C99: 2013-12-05 | D99: Miraflores | E99: Alberto | F99: P1-001 | G99: Post-it 5X5 | H99: Bolsa x 10 | I99: 12 | J99: 20 | K99: 240 | L99: 7.2
A100: 24 | B100: 2013-02-13 | C100: 2013-02-13 | D100: Surco | E100: Fabián | F100: P1-001 | G100: Post-it 5X5 | H100: Bolsa x 10 | I100: 12 | J100: 20 | K100: 240 | L100: 7.2
A101: 27 | B101: 2013-03-14 | C101: 2013-03-14 | D101: Surco | E101: Piero | F101: P1-001 | G101: Post-it 5X5 | H101: Bolsa x 10 | I101: 12 | J101: 20 | K101: 240 | L101: 7.2
A102: 2 | B102: 2013-07-08 | C102: 2013-07-08 | D102: Lima | E102: Elías | F102: P3-001 | G102: Post-it 3X3 | H102: Bolsa x 10 | I102: 10 | J102: 20 | K102: 200 | L102: 6
A103: 4 | B103: 2013-07-28 | C103: 2013-07-28 | D103: Lima | E103: Elías | F103: P3-001 | G103: Post-it 3X3 | H103: Bolsa x 10 | I103: 10 | J103: 20 | K103: 200 | L103: 6
A104: 6 | B104: 2013-08-17 | C104: 2013-08-17 | D104: Lima | E104: Elías | F104: P3-001 | G104: Post-it 3X3 | H104: Bolsa x 10 | I104: 10 | J104: 20 | K104: 200 | L104: 6
A105: 10 | B105: 2013-09-26 | C105: 2013-09-26 | D105: Miraflores | E105: Daniel | F105: P3-001 | G105: Post-it 3X3 | H105: Bolsa x 10 | I105: 10 | J105: 20 | K105: 200 | L105: 6
A106: 11 | B106: 2013-10-06 | C106: =B106 -> 2013-10-06 | D106: Miraflores | E106: Alberto | F106: P3-001 | G106: Post-it 3X3 | H106: Bolsa x 10 | I106: 10 | J106: 20 | K106: =I106*J106 -> 200 | L106: =IF(J106>=30,K106*4%,K106*3%) -> 6
A107: 14 | B107: 2013-11-05 | C107: 2013-11-05 | D107: Miraflores | E107: Daniel | F107: P3-001 | G107: Post-it 3X3 | H107: Bolsa x 10 | I107: 10 | J107: 20 | K107: 200 | L107: 6
A108: 15 | B108: 2013-11-15 | C108: 2013-11-15 | D108: Miraflores | E108: Alberto | F108: P3-001 | G108: Post-it 3X3 | H108: Bolsa x 10 | I108: 10 | J108: 20 | K108: 200 | L108: 6
A109: 22 | B109: 2013-01-24 | C109: 2013-01-24 | D109: Surco | E109: Fabián | F109: P3-001 | G109: Post-it 3X3 | H109: Bolsa x 10 | I109: 10 | J109: 20 | K109: 200 | L109: 6
A110: 23 | B110: 2013-02-03 | C110: 2013-02-03 | D110: Surco | E110: Piero | F110: P3-001 | G110: Post-it 3X3 | H110: Bolsa x 10 | I110: 10 | J110: 20 | K110: 200 | L110: 6
A111: 28 | B111: 2013-03-24 | C111: 2013-03-24 | D111: Surco | E111: Fabián | F111: P3-001 | G111: Post-it 3X3 | H111: Bolsa x 10 | I111: 10 | J111: 20 | K111: 200 | L111: 6
A112: 14 | B112: 2013-11-05 | C112: 2013-11-05 | D112: Miraflores | E112: Daniel | F112: P2-001 | G112: Post-it 5X8 | H112: Bolsa x 10 | I112: 15 | J112: 10 | K112: 150 | L112: 4.5
A113: 20 | B113: 2014-01-04 | C113: 2014-01-04 | D113: Surco | E113: Fabián | F113: P2-001 | G113: Post-it 5X8 | H113: Bolsa x 10 | I113: 15 | J113: 10 | K113: 150 | L113: 4.5
A114: 22 | B114: 2013-01-24 | C114: 2013-01-24 | D114: Surco | E114: Fabián | F114: P2-001 | G114: Post-it 5X8 | H114: Bolsa x 10 | I114: 15 | J114: 10 | K114: 150 | L114: 4.5
A115: 25 | B115: 2013-02-23 | C115: 2013-02-23 | D115: Surco | E115: Piero | F115: P2-001 | G115: Post-it 5X8 | H115: Bolsa x 10 | I115: 15 | J115: 10 | K115: 150 | L115: 4.5
A116: 26 | B116: 2013-03-05 | C116: 2013-03-05 | D116: Surco | E116: Fabián | F116: P2-001 | G116: Post-it 5X8 | H116: Bolsa x 10 | I116: 15 | J116: 10 | K116: 150 | L116: 4.5
A117: 28 | B117: 2013-03-24 | C117: 2013-03-24 | D117: Surco | E117: Fabián | F117: P2-001 | G117: Post-it 5X8 | H117: Bolsa x 10 | I117: 15 | J117: 10 | K117: 150 | L117: 4.5
A118: 3 | B118: 2013-07-18 | C118: 2013-07-18 | D118: Lima | E118: Josué | F118: L1-001 | G118: Lápiz Nº 2 Faber Castel | H118: Caja x 12 | I118: 3 | J118: 40 | K118: 120 | L118: 4.8
A119: 10 | B119: 2013-09-26 | C119: 2013-09-26 | D119: Miraflores | E119: Daniel | F119: L1-001 | G119: Lápiz Nº 2 Faber Castel | H119: Caja x 12 | I119: 3 | J119: 40 | K119: 120 | L119: 4.8
A120: 11 | B120: 2013-10-06 | C120: 2013-10-06 | D120: Miraflores | E120: Alberto | F120: L1-001 | G120: Lápiz Nº 2 Faber Castel | H120: Caja x 12 | I120: 3 | J120: 40 | K120: 120 | L120: 4.8
A121: 13 | B121: 2013-10-26 | C121: 2013-10-26 | D121: Miraflores | E121: Alberto | F121: P1-001 | G121: Post-it 5X5 | H121: Bolsa x 10 | I121: 12 | J121: 10 | K121: 120 | L121: 3.6
A122: 15 | B122: 2013-11-15 | C122: 2013-11-15 | D122: Miraflores | E122: Alberto | F122: L1-001 | G122: Lápiz Nº 2 Faber Castel | H122: Caja x 12 | I122: 3 | J122: 40 | K122: 120 | L122: 4.8
A123: 18 | B123: 2013-12-15 | C123: 2013-12-15 | D123: Miraflores | E123: Daniel | F123: L1-001 | G123: Lápiz Nº 2 Faber Castel | H123: Caja x 12 | I123: 3 | J123: 40 | K123: 120 | L123: 4.8
A124: 19 | B124: 2013-12-25 | C124: 2013-12-25 | D124: Surco | E124: Piero | F124: P1-001 | G124: Post-it 5X5 | H124: Bolsa x 10 | I124: 12 | J124: 10 | K124: 120 | L124: 3.6
A125: 20 | B125: 2014-01-04 | C125: 2014-01-04 | D125: Surco | E125: Fabián | F125: P1-001 | G125: Post-it 5X5 | H125: Bolsa x 10 | I125: 12 | J125: 10 | K125: 120 | L125: 3.6
A126: 22 | B126: 2013-01-24 | C126: 2013-01-24 | D126: Surco | E126: Fabián | F126: P1-001 | G126: Post-it 5X5 | H126: Bolsa x 10 | I126: 12 | J126: 10 | K126: 120 | L126: 3.6
A127: 24 | B127: 2013-02-13 | C127: 2013-02-13 | D127: Surco | E127: Fabián | F127: L1-001 | G127: Lápiz Nº 2 Faber Castel | H127: Caja x 12 | I127: 3 | J127: 40 | K127: 120 | L127: 4.8
A128: 29 | B128: 2013-04-03 | C128: 2013-04-03 | D128: Surco | E128: Piero | F128: P1-001 | G128: Post-it 5X5 | H128: Bolsa x 10 | I128: 12 | J128: 10 | K128: 120 | L128: 3.6
A129: 2 | B129: 2013-07-08 | C129: 2013-07-08 | D129: Lima | E129: Elías | F129: D1-001 | G129: CD-R Sony 700 MB | H129: Caja x 10 | I129: 2.5 | J129: 40 | K129: 100 | L129: 4
A130: 7 | B130: 2013-08-27 | C130: 2013-08-27 | D130: Lima | E130: Josué | F130: D1-001 | G130: CD-R Sony 700 MB | H130: Caja x 10 | I130: 2.5 | J130: 40 | K130: 100 | L130: 4
A131: 19 | B131: 2013-12-25 | C131: 2013-12-25 | D131: Surco | E131: Piero | F131: P3-001 | G131: Post-it 3X3 | H131: Bolsa x 10 | I131: 10 | J131: 10 | K131: 100 | L131: 3
A132: 20 | B132: 2014-01-04 | C132: 2014-01-04 | D132: Surco | E132: Fabián | F132: P3-001 | G132: Post-it 3X3 | H132: Bolsa x 10 | I132: 10 | J132: 10 | K132: 100 | L132: 3
A133: 23 | B133: 2013-02-03 | C133: 2013-02-03 | D133: Surco | E133: Piero | F133: D1-001 | G133: CD-R Sony 700 MB | H133: Caja x 10 | I133: 2.5 | J133: 40 | K133: 100 | L133: 4
A134: 28 | B134: 2013-03-24 | C134: 2013-03-24 | D134: Surco | E134: Fabián | F134: D1-001 | G134: CD-R Sony 700 MB | H134: Caja x 10 | I134: 2.5 | J134: 40 | K134: 100 | L134: 4
A135: 29 | B135: 2013-04-03 | C135: 2013-04-03 | D135: Surco | E135: Piero | F135: P3-001 | G135: Post-it 3X3 | H135: Bolsa x 10 | I135: 10 | J135: 10 | K135: 100 | L135: 3
A136: 1 | B136: 2013-06-28 | C136: 2013-06-28 | D136: Lima | E136: Josué | F136: L1-001 | G136: Lápiz Nº 2 Faber Castel | H136: Caja x 12 | I136: 3 | J136: 30 | K136: 90 | L136: 3.6
A137: 2 | B137: 2013-07-08 | C137: 2013-07-08 | D137: Lima | E137: Elías | F137: L1-001 | G137: Lápiz Nº 2 Faber Castel | H137: Caja x 12 | I137: 3 | J137: 30 | K137: 90 | L137: 3.6
A138: 4 | B138: 2013-07-28 | C138: =B138 -> 2013-07-28 | D138: Lima | E138: Elías | F138: L1-001 | G138: Lápiz Nº 2 Faber Castel | H138: Caja x 12 | I138: 3 | J138: 30 | K138: =I138*J138 -> 90 | L138: =IF(J138>=30,K138*4%,K138*3%) -> 3.6
A139: 5 | B139: 2013-08-07 | C139: 2013-08-07 | D139: Lima | E139: Josué | F139: L1-001 | G139: Lápiz Nº 2 Faber Castel | H139: Caja x 12 | I139: 3 | J139: 30 | K139: 90 | L139: 3.6
A140: 7 | B140: 2013-08-27 | C140: 2013-08-27 | D140: Lima | E140: Josué | F140: L1-001 | G140: Lápiz Nº 2 Faber Castel | H140: Caja x 12 | I140: 3 | J140: 30 | K140: 90 | L140: 3.6
A141: 8 | B141: 2013-09-06 | C141: 2013-09-06 | D141: Lima | E141: Elías | F141: L1-001 | G141: Lápiz Nº 2 Faber Castel | H141: Caja x 12 | I141: 3 | J141: 30 | K141: 90 | L141: 3.6
A142: 9 | B142: 2013-09-16 | C142: 2013-09-16 | D142: Miraflores | E142: Alberto | F142: L1-001 | G142: Lápiz Nº 2 Faber Castel | H142: Caja x 12 | I142: 3 | J142: 30 | K142: 90 | L142: 3.6
A143: 12 | B143: 2013-10-16 | C143: 2013-10-16 | D143: Miraflores | E143: Daniel | F143: L1-001 | G143: Lápiz Nº 2 Faber Castel | H143: Caja x 12 | I143: 3 | J143: 30 | K143: 90 | L143: 3.6
A144: 14 | B144: 2013-11-05 | C144: 2013-11-05 | D144: Miraflores | E144: Daniel | F144: L1-001 | G144: Lápiz Nº 2 Faber Castel | H144: Caja x 12 | I144: 3 | J144: 30 | K144: 90 | L144: 3.6
A145: 17 | B145: 2013-12-05 | C145: 2013-12-05 | D145: Miraflores | E145: Alberto | F145: L1-001 | G145: Lápiz Nº 2 Faber Castel | H145: Caja x 12 | I145: 3 | J145: 30 | K145: 90 | L145: 3.6
A146: 21 | B146: 2013-01-14 | C146: 2013-01-14 | D146: Surco | E146: Piero | F146: L1-001 | G146: Lápiz Nº 2 Faber Castel | H146: Caja x 12 | I146: 3 | J146: 30 | K146: 90 | L146: 3.6
A147: 22 | B147: 2013-01-24 | C147: 2013-01-24 | D147: Surco | E147: Fabián | F147: L1-001 | G147: Lápiz Nº 2 Faber Castel | H147: Caja x 12 | I147: 3 | J147: 30 | K147: 90 | L147: 3.6
A148: 23 | B148: 2013-02-03 | C148: 2013-02-03 | D148: Surco | E148: Piero | F148: L1-001 | G148: Lápiz Nº 2 Faber Castel | H148: Caja x 12 | I148: 3 | J148: 30 | K148: 90 | L148: 3.6
A149: 25 | B149: 2013-02-23 | C149: 2013-02-23 | D149: Surco | E149: Piero | F149: L1-001 | G149: Lápiz Nº 2 Faber Castel | H149: Caja x 12 | I149: 3 | J149: 30 | K149: 90 | L149: 3.6
A150: 26 | B150: 2013-03-05 | C150: 2013-03-05 | D150: Surco | E150: Fabián | F150: L1-001 | G150: Lápiz Nº 2 Faber Castel | H150: Caja x 12 | I150: 3 | J150: 30 | K150: 90 | L150: 3.6
A151: 28 | B151: 2013-03-24 | C151: 2013-03-24 | D151: Surco | E151: Fabián | F151: L1-001 | G151: Lápiz Nº 2 Faber Castel | H151: Caja x 12 | I151: 3 | J151: 30 | K151: 90 | L151: 3.6
A152: 3 | B152: 2013-07-18 | C152: 2013-07-18 | D152: Lima | E152: Josué | F152: D1-001 | G152: CD-R Sony 700 MB | H152: Caja x 10 | I152: 2.5 | J152: 30 | K152: 75 | L152: 3
A153: 10 | B153: 2013-09-26 | C153: 2013-09-26 | D153: Miraflores | E153: Daniel | F153: D1-001 | G153: CD-R Sony 700 MB | H153: Caja x 10 | I153: 2.5 | J153: 30 | K153: 75 | L153: 3
A154: 11 | B154: 2013-10-06 | C154: 2013-10-06 | D154: Miraflores | E154: Alberto | F154: D1-001 | G154: CD-R Sony 700 MB | H154: Caja x 10 | I154: 2.5 | J154: 30 | K154: 75 | L154: 3
A155: 15 | B155: 2013-11-15 | C155: 2013-11-15 | D155: Miraflores | E155: Alberto | F155: D1-001 | G155: CD-R Sony 700 MB | H155: Caja x 10 | I155: 2.5 | J155: 30 | K155: 75 | L155: 3
A156: 16 | B156: 2013-11-25 | C156: 2013-11-25 | D156: Miraflores | E156: Daniel | F156: D1-001 | G156: CD-R Sony 700 MB | H156: Caja x 10 | I156: 2.5 | J156: 30 | K156: 75 | L156: 3
A157: 21 | B157: 2013-01-14 | C157: 2013-01-14 | D157: Surco | E157: Piero | F157: D1-001 | G157: CD-R Sony 700 MB | H157: Caja x 10 | I157: 2.5 | J157: 30 | K157: 75 | L157: 3
A158: 24 | B158: 2013-02-13 | C158: 2013-02-13 | D158: Surco | E158: Fabián | F158: D1-001 | G158: CD-R Sony 700 MB | H158: Caja x 10 | I158: 2.5 | J158: 30 | K158: 75 | L158: 3
A159: 27 | B159: 2013-03-14 | C159: 2013-03-14 | D159: Surco | E159: Piero | F159: D1-001 | G159: CD-R Sony 700 MB | H159: Caja x 10 | I159: 2.5 | J159: 30 | K159: 75 | L159: 3
A160: 30 | B160: 2013-04-13 | C160: 2013-04-13 | D160: Surco | E160: Fabián | F160: D1-001 | G160: CD-R Sony 700 MB | H160: Caja x 10 | I160: 2.5 | J160: 30 | K160: 75 | L160: 3
A161: 6 | B161: 2013-08-17 | C161: 2013-08-17 | D161: Lima | E161: Elías | F161: L1-001 | G161: Lápiz Nº 2 Faber Castel | H161: Caja x 12 | I161: 3 | J161: 20 | K161: 60 | L161: 1.8
A162: 13 | B162: 2013-10-26 | C162: 2013-10-26 | D162: Miraflores | E162: Alberto | F162: L1-001 | G162: Lápiz Nº 2 Faber Castel | H162: Caja x 12 | I162: 3 | J162: 20 | K162: 60 | L162: 1.8
A163: 16 | B163: 2013-11-25 | C163: 2013-11-25 | D163: Miraflores | E163: Daniel | F163: L1-001 | G163: Lápiz Nº 2 Faber Castel | H163: Caja x 12 | I163: 3 | J163: 20 | K163: 60 | L163: 1.8
A164: 27 | B164: 2013-03-14 | C164: 2013-03-14 | D164: Surco | E164: Piero | F164: L1-001 | G164: Lápiz Nº 2 Faber Castel | H164: Caja x 12 | I164: 3 | J164: 20 | K164: 60 | L164: 1.8
A165: 30 | B165: 2013-04-13 | C165: 2013-04-13 | D165: Surco | E165: Fabián | F165: L1-001 | G165: Lápiz Nº 2 Faber Castel | H165: Caja x 12 | I165: 3 | J165: 20 | K165: 60 | L165: 1.8
A166: 1 | B166: 2013-06-28 | C166: 2013-06-28 | D166: Lima | E166: Josué | F166: D1-001 | G166: CD-R Sony 700 MB | H166: Caja x 10 | I166: 2.5 | J166: 20 | K166: 50 | L166: 1.5
A167: 4 | B167: 2013-07-28 | C167: 2013-07-28 | D167: Lima | E167: Elías | F167: D1-001 | G167: CD-R Sony 700 MB | H167: Caja x 10 | I167: 2.5 | J167: 20 | K167: 50 | L167: 1.5
A168: 5 | B168: 2013-08-07 | C168: 2013-08-07 | D168: Lima | E168: Josué | F168: D1-001 | G168: CD-R Sony 700 MB | H168: Caja x 10 | I168: 2.5 | J168: 20 | K168: 50 | L168: 1.5
A169: 6 | B169: 2013-08-17 | C169: 2013-08-17 | D169: Lima | E169: Elías | F169: D1-001 | G169: CD-R Sony 700 MB | H169: Caja x 10 | I169: 2.5 | J169: 20 | K169: 50 | L169: 1.5
A170: 8 | B170: 2013-09-06 | C170: =B170 -> 2013-09-06 | D170: Lima | E170: Elías | F170: D1-001 | G170: CD-R Sony 700 MB | H170: Caja x 10 | I170: 2.5 | J170: 20 | K170: =I170*J170 -> 50 | L170: =IF(J170>=30,K170*4%,K170*3%) -> 1.5
A171: 9 | B171: 2013-09-16 | C171: 2013-09-16 | D171: Miraflores | E171: Alberto | F171: D1-001 | G171: CD-R Sony 700 MB | H171: Caja x 10 | I171: 2.5 | J171: 20 | K171: 50 | L171: 1.5
A172: 12 | B172: 2013-10-16 | C172: 2013-10-16 | D172: Miraflores | E172: Daniel | F172: D1-001 | G172: CD-R Sony 700 MB | H172: Caja x 10 | I172: 2.5 | J172: 20 | K172: 50 | L172: 1.5
A173: 14 | B173: 2013-11-05 | C173: 2013-11-05 | D173: Miraflores | E173: Daniel | F173: D1-001 | G173: CD-R Sony 700 MB | H173: Caja x 10 | I173: 2.5 | J173: 20 | K173: 50 | L173: 1.5
A174: 17 | B174: 2013-12-05 | C174: 2013-12-05 | D174: Miraflores | E174: Alberto | F174: D1-001 | G174: CD-R Sony 700 MB | H174: Caja x 10 | I174: 2.5 | J174: 20 | K174: 50 | L174: 1.5
A175: 18 | B175: 2013-12-15 | C175: 2013-12-15 | D175: Miraflores | E175: Daniel | F175: D1-001 | G175: CD-R Sony 700 MB | H175: Caja x 10 | I175: 2.5 | J175: 20 | K175: 50 | L175: 1.5
A176: 22 | B176: 2013-01-24 | C176: 2013-01-24 | D176: Surco | E176: Fabián | F176: D1-001 | G176: CD-R Sony 700 MB | H176: Caja x 10 | I176: 2.5 | J176: 20 | K176: 50 | L176: 1.5
A177: 25 | B177: 2013-02-23 | C177: 2013-02-23 | D177: Surco | E177: Piero | F177: D1-001 | G177: CD-R Sony 700 MB | H177: Caja x 10 | I177: 2.5 | J177: 20 | K177: 50 | L177: 1.5
A178: 26 | B178: 2013-03-05 | C178: 2013-03-05 | D178: Surco | E178: Fabián | F178: D1-001 | G178: CD-R Sony 700 MB | H178: Caja x 10 | I178: 2.5 | J178: 20 | K178: 50 | L178: 1.5
A179: 19 | B179: 2013-12-25 | C179: 2013-12-25 | D179: Surco | E179: Piero | F179: L1-001 | G179: Lápiz Nº 2 Faber Castel | H179: Caja x 12 | I179: 3 | J179: 10 | K179: 30 | L179: 0.9
A180: 20 | B180: 2014-01-04 | C180: 2014-01-04 | D180: Surco | E180: Fabián | F180: L1-001 | G180: Lápiz Nº 2 Faber Castel | H180: Caja x 12 | I180: 3 | J180: 10 | K180: 30 | L180: 0.9
A181: 29 | B181: 2013-04-03 | C181: 2013-04-03 | D181: Surco | E181: Piero | F181: L1-001 | G181: Lápiz Nº 2 Faber Castel | H181: Caja x 12 | I181: 3 | J181: 10 | K181: 30 | L181: 0.9
A182: 13 | B182: 2013-10-26 | C182: 2013-10-26 | D182: Miraflores | E182: Alberto | F182: D1-001 | G182: CD-R Sony 700 MB | H182: Caja x 10 | I182: 2.5 | J182: 10 | K182: 25 | L182: 0.75
A183: 19 | B183: 2013-12-25 | C183: 2013-12-25 | D183: Surco | E183: Piero | F183: D1-001 | G183: CD-R Sony 700 MB | H183: Caja x 10 | I183: 2.5 | J183: 10 | K183: 25 | L183: 0.75
A184: 20 | B184: 2014-01-04 | C184: 2014-01-04 | D184: Surco | E184: Fabián | F184: D1-001 | G184: CD-R Sony 700 MB | H184: Caja x 10 | I184: 2.5 | J184: 10 | K184: 25 | L184: 0.75
A185: 29 | B185: 2013-04-03 | C185: 2013-04-03 | D185: Surco | E185: Piero | F185: D1-001 | G185: CD-R Sony 700 MB | H185: Caja x 10 | I185: 2.5 | J185: 10 | K185: 25 | L185: 0.75

Sheet Ejercicio 2
A9: Nº Pedido | B9: Fecha | C9: Mes | D9: Sucursal | E9: Vendedor | F9: Código | G9: Artículo | H9: Unidad | I9: Precio Unitario | J9: Cantidad | K9: Ventas | L9: Comisión
A10: 1 | B10: 2013-06-28 | C10: =B10 -> 2013-06-28 | D10: Lima | E10: Josué | F10: D1-001 | G10: CD-R Sony 700 MB | H10: Caja x 10 | I10: 2.5 | J10: 20 | K10: =I10*J10 -> 50 | L10: =IF(J10>=30,K10*4%,K10*3%) -> 1.5
A11: 1 | B11: 2013-06-28 | C11: 2013-06-28 | D11: Lima | E11: Josué | F11: L1-001 | G11: Lápiz Nº 2 Faber Castel | H11: Caja x 12 | I11: 3 | J11: 30 | K11: 90 | L11: 3.6
A12: 1 | B12: 2013-06-28 | C12: 2013-06-28 | D12: Lima | E12: Josué | F12: P1-001 | G12: Post-it 5X5 | H12: Bolsa x 10 | I12: 12 | J12: 30 | K12: 360 | L12: 14.4
A13: 1 | B13: 2013-06-28 | C13: 2013-06-28 | D13: Lima | E13: Josué | F13: P2-001 | G13: Post-it 5X8 | H13: Bolsa x 10 | I13: 15 | J13: 20 | K13: 300 | L13: 9
A14: 1 | B14: 2013-06-28 | C14: 2013-06-28 | D14: Lima | E14: Josué | F14: P3-001 | G14: Post-it 3X3 | H14: Bolsa x 10 | I14: 10 | J14: 30 | K14: 300 | L14: 12
A15: 1 | B15: 2013-06-28 | C15: 2013-06-28 | D15: Lima | E15: Josué | F15: S1-001 | G15: Sobre Manila A4 | H15: Ciento | I15: 25 | J15: 10 | K15: 250 | L15: 7.5
A16: 2 | B16: 2013-07-08 | C16: 2013-07-08 | D16: Lima | E16: Elías | F16: D1-001 | G16: CD-R Sony 700 MB | H16: Caja x 10 | I16: 2.5 | J16: 40 | K16: 100 | L16: 4
A17: 2 | B17: 2013-07-08 | C17: 2013-07-08 | D17: Lima | E17: Elías | F17: L1-001 | G17: Lápiz Nº 2 Faber Castel | H17: Caja x 12 | I17: 3 | J17: 30 | K17: 90 | L17: 3.6
A18: 2 | B18: 2013-07-08 | C18: 2013-07-08 | D18: Lima | E18: Elías | F18: P1-001 | G18: Post-it 5X5 | H18: Bolsa x 10 | I18: 12 | J18: 30 | K18: 360 | L18: 14.4
A19: 2 | B19: 2013-07-08 | C19: 2013-07-08 | D19: Lima | E19: Elías | F19: P2-001 | G19: Post-it 5X8 | H19: Bolsa x 10 | I19: 15 | J19: 20 | K19: 300 | L19: 9
A20: 2 | B20: 2013-07-08 | C20: 2013-07-08 | D20: Lima | E20: Elías | F20: P3-001 | G20: Post-it 3X3 | H20: Bolsa x 10 | I20: 10 | J20: 20 | K20: 200 | L20: 6
A21: 2 | B21: 2013-07-08 | C21: 2013-07-08 | D21: Lima | E21: Elías | F21: S1-001 | G21: Sobre Manila A4 | H21: Ciento | I21: 25 | J21: 10 | K21: 250 | L21: 7.5
A22: 3 | B22: 2013-07-18 | C22: 2013-07-18 | D22: Lima | E22: Josué | F22: D1-001 | G22: CD-R Sony 700 MB | H22: Caja x 10 | I22: 2.5 | J22: 30 | K22: 75 | L22: 3
A23: 3 | B23: 2013-07-18 | C23: 2013-07-18 | D23: Lima | E23: Josué | F23: L1-001 | G23: Lápiz Nº 2 Faber Castel | H23: Caja x 12 | I23: 3 | J23: 40 | K23: 120 | L23: 4.8
A24: 3 | B24: 2013-07-18 | C24: 2013-07-18 | D24: Lima | E24: Josué | F24: P1-001 | G24: Post-it 5X5 | H24: Bolsa x 10 | I24: 12 | J24: 30 | K24: 360 | L24: 14.4
A25: 3 | B25: 2013-07-18 | C25: 2013-07-18 | D25: Lima | E25: Josué | F25: P2-001 | G25: Post-it 5X8 | H25: Bolsa x 10 | I25: 15 | J25: 40 | K25: 600 | L25: 24
A26: 3 | B26: 2013-07-18 | C26: 2013-07-18 | D26: Lima | E26: Josué | F26: P3-001 | G26: Post-it 3X3 | H26: Bolsa x 10 | I26: 10 | J26: 50 | K26: 500 | L26: 20
A27: 3 | B27: 2013-07-18 | C27: 2013-07-18 | D27: Lima | E27: Josué | F27: S1-001 | G27: Sobre Manila A4 | H27: Ciento | I27: 25 | J27: 50 | K27: 1250 | L27: 50
A28: 4 | B28: 2013-07-28 | C28: 2013-07-28 | D28: Lima | E28: Elías | F28: D1-001 | G28: CD-R Sony 700 MB | H28: Caja x 10 | I28: 2.5 | J28: 20 | K28: 50 | L28: 1.5
A29: 4 | B29: 2013-07-28 | C29: 2013-07-28 | D29: Lima | E29: Elías | F29: L1-001 | G29: Lápiz Nº 2 Faber Castel | H29: Caja x 12 | I29: 3 | J29: 30 | K29: 90 | L29: 3.6
A30: 4 | B30: 2013-07-28 | C30: 2013-07-28 | D30: Lima | E30: Elías | F30: P1-001 | G30: Post-it 5X5 | H30: Bolsa x 10 | I30: 12 | J30: 30 | K30: 360 | L30: 14.4
A31: 4 | B31: 2013-07-28 | C31: 2013-07-28 | D31: Lima | E31: Elías | F31: P2-001 | G31: Post-it 5X8 | H31: Bolsa x 10 | I31: 15 | J31: 40 | K31: 600 | L31: 24
A32: 4 | B32: 2013-07-28 | C32: 2013-07-28 | D32: Lima | E32: Elías | F32: P3-001 | G32: Post-it 3X3 | H32: Bolsa x 10 | I32: 10 | J32: 20 | K32: 200 | L32: 6
A33: 4 | B33: 2013-07-28 | C33: 2013-07-28 | D33: Lima | E33: Elías | F33: S1-001 | G33: Sobre Manila A4 | H33: Ciento | I33: 25 | J33: 30 | K33: 750 | L33: 30
A34: 5 | B34: 2013-08-07 | C34: 2013-08-07 | D34: Lima | E34: Josué | F34: D1-001 | G34: CD-R Sony 700 MB | H34: Caja x 10 | I34: 2.5 | J34: 20 | K34: 50 | L34: 1.5
A35: 5 | B35: 2013-08-07 | C35: 2013-08-07 | D35: Lima | E35: Josué | F35: L1-001 | G35: Lápiz Nº 2 Faber Castel | H35: Caja x 12 | I35: 3 | J35: 30 | K35: 90 | L35: 3.6
A36: 5 | B36: 2013-08-07 | C36: 2013-08-07 | D36: Lima | E36: Josué | F36: P1-001 | G36: Post-it 5X5 | H36: Bolsa x 10 | I36: 12 | J36: 40 | K36: 480 | L36: 19.2
A37: 5 | B37: 2013-08-07 | C37: 2013-08-07 | D37: Lima | E37: Josué | F37: P2-001 | G37: Post-it 5X8 | H37: Bolsa x 10 | I37: 15 | J37: 20 | K37: 300 | L37: 9
A38: 5 | B38: 2013-08-07 | C38: 2013-08-07 | D38: Lima | E38: Josué | F38: P3-001 | G38: Post-it 3X3 | H38: Bolsa x 10 | I38: 10 | J38: 30 | K38: 300 | L38: 12
A39: 5 | B39: 2013-08-07 | C39: 2013-08-07 | D39: Lima | E39: Josué | F39: S1-001 | G39: Sobre Manila A4 | H39: Ciento | I39: 25 | J39: 30 | K39: 750 | L39: 30
A40: 6 | B40: 2013-08-17 | C40: 2013-08-17 | D40: Lima | E40: Elías | F40: D1-001 | G40: CD-R Sony 700 MB | H40: Caja x 10 | I40: 2.5 | J40: 20 | K40: 50 | L40: 1.5
A41: 6 | B41: 2013-08-17 | C41: 2013-08-17 | D41: Lima | E41: Elías | F41: L1-001 | G41: Lápiz Nº 2 Faber Castel | H41: Caja x 12 | I41: 3 | J41: 20 | K41: 60 | L41: 1.8
A42: 6 | B42: 2013-08-17 | C42: =B42 -> 2013-08-17 | D42: Lima | E42: Elías | F42: P1-001 | G42: Post-it 5X5 | H42: Bolsa x 10 | I42: 12 | J42: 30 | K42: =I42*J42 -> 360 | L42: =IF(J42>=30,K42*4%,K42*3%) -> 14.4
A43: 6 | B43: 2013-08-17 | C43: 2013-08-17 | D43: Lima | E43: Elías | F43: P2-001 | G43: Post-it 5X8 | H43: Bolsa x 10 | I43: 15 | J43: 30 | K43: 450 | L43: 18
A44: 6 | B44: 2013-08-17 | C44: 2013-08-17 | D44: Lima | E44: Elías | F44: P3-001 | G44: Post-it 3X3 | H44: Bolsa x 10 | I44: 10 | J44: 20 | K44: 200 | L44: 6
A45: 6 | B45: 2013-08-17 | C45: 2013-08-17 | D45: Lima | E45: Elías | F45: S1-001 | G45: Sobre Manila A4 | H45: Ciento | I45: 25 | J45: 20 | K45: 500 | L45: 15
A46: 7 | B46: 2013-08-27 | C46: 2013-08-27 | D46: Lima | E46: Josué | F46: D1-001 | G46: CD-R Sony 700 MB | H46: Caja x 10 | I46: 2.5 | J46: 40 | K46: 100 | L46: 4
A47: 7 | B47: 2013-08-27 | C47: 2013-08-27 | D47: Lima | E47: Josué | F47: L1-001 | G47: Lápiz Nº 2 Faber Castel | H47: Caja x 12 | I47: 3 | J47: 30 | K47: 90 | L47: 3.6
A48: 7 | B48: 2013-08-27 | C48: 2013-08-27 | D48: Lima | E48: Josué | F48: P1-001 | G48: Post-it 5X5 | H48: Bolsa x 10 | I48: 12 | J48: 45 | K48: 540 | L48: 21.6
A49: 7 | B49: 2013-08-27 | C49: 2013-08-27 | D49: Lima | E49: Josué | F49: P2-001 | G49: Post-it 5X8 | H49: Bolsa x 10 | I49: 15 | J49: 20 | K49: 300 | L49: 9
A50: 7 | B50: 2013-08-27 | C50: 2013-08-27 | D50: Lima | E50: Josué | F50: P3-001 | G50: Post-it 3X3 | H50: Bolsa x 10 | I50: 10 | J50: 55 | K50: 550 | L50: 22
A51: 7 | B51: 2013-08-27 | C51: 2013-08-27 | D51: Lima | E51: Josué | F51: S1-001 | G51: Sobre Manila A4 | H51: Ciento | I51: 25 | J51: 30 | K51: 750 | L51: 30
A52: 8 | B52: 2013-09-06 | C52: 2013-09-06 | D52: Lima | E52: Elías | F52: D1-001 | G52: CD-R Sony 700 MB | H52: Caja x 10 | I52: 2.5 | J52: 20 | K52: 50 | L52: 1.5
A53: 8 | B53: 2013-09-06 | C53: 2013-09-06 | D53: Lima | E53: Elías | F53: L1-001 | G53: Lápiz Nº 2 Faber Castel | H53: Caja x 12 | I53: 3 | J53: 30 | K53: 90 | L53: 3.6
A54: 8 | B54: 2013-09-06 | C54: 2013-09-06 | D54: Lima | E54: Elías | F54: P1-001 | G54: Post-it 5X5 | H54: Bolsa x 10 | I54: 12 | J54: 50 | K54: 600 | L54: 24
A55: 8 | B55: 2013-09-06 | C55: 2013-09-06 | D55: Lima | E55: Elías | F55: P2-001 | G55: Post-it 5X8 | H55: Bolsa x 10 | I55: 15 | J55: 20 | K55: 300 | L55: 9
A56: 8 | B56: 2013-09-06 | C56: 2013-09-06 | D56: Lima | E56: Elías | F56: P3-001 | G56: Post-it 3X3 | H56: Bolsa x 10 | I56: 10 | J56: 40 | K56: 400 | L56: 16
A57: 8 | B57: 2013-09-06 | C57: 2013-09-06 | D57: Lima | E57: Elías | F57: S1-001 | G57: Sobre Manila A4 | H57: Ciento | I57: 25 | J57: 40 | K57: 1000 | L57: 40
A58: 9 | B58: 2013-09-16 | C58: 2013-09-16 | D58: Miraflores | E58: Alberto | F58: D1-001 | G58: CD-R Sony 700 MB | H58: Caja x 10 | I58: 2.5 | J58: 20 | K58: 50 | L58: 1.5
A59: 9 | B59: 2013-09-16 | C59: 2013-09-16 | D59: Miraflores | E59: Alberto | F59: L1-001 | G59: Lápiz Nº 2 Faber Castel | H59: Caja x 12 | I59: 3 | J59: 30 | K59: 90 | L59: 3.6
A60: 9 | B60: 2013-09-16 | C60: 2013-09-16 | D60: Miraflores | E60: Alberto | F60: P1-001 | G60: Post-it 5X5 | H60: Bolsa x 10 | I60: 12 | J60: 30 | K60: 360 | L60: 14.4
A61: 9 | B61: 2013-09-16 | C61: 2013-09-16 | D61: Miraflores | E61: Alberto | F61: P2-001 | G61: Post-it 5X8 | H61: Bolsa x 10 | I61: 15 | J61: 20 | K61: 300 | L61: 9
A62: 9 | B62: 2013-09-16 | C62: 2013-09-16 | D62: Miraflores | E62: Alberto | F62: P3-001 | G62: Post-it 3X3 | H62: Bolsa x 10 | I62: 10 | J62: 40 | K62: 400 | L62: 16
A63: 9 | B63: 2013-09-16 | C63: 2013-09-16 | D63: Miraflores | E63: Alberto | F63: S1-001 | G63: Sobre Manila A4 | H63: Ciento | I63: 25 | J63: 30 | K63: 750 | L63: 30
A64: 10 | B64: 2013-09-26 | C64: 2013-09-26 | D64: Miraflores | E64: Daniel | F64: D1-001 | G64: CD-R Sony 700 MB | H64: Caja x 10 | I64: 2.5 | J64: 30 | K64: 75 | L64: 3
A65: 10 | B65: 2013-09-26 | C65: 2013-09-26 | D65: Miraflores | E65: Daniel | F65: L1-001 | G65: Lápiz Nº 2 Faber Castel | H65: Caja x 12 | I65: 3 | J65: 40 | K65: 120 | L65: 4.8
A66: 10 | B66: 2013-09-26 | C66: 2013-09-26 | D66: Miraflores | E66: Daniel | F66: P1-001 | G66: Post-it 5X5 | H66: Bolsa x 10 | I66: 12 | J66: 30 | K66: 360 | L66: 14.4
A67: 10 | B67: 2013-09-26 | C67: 2013-09-26 | D67: Miraflores | E67: Daniel | F67: P2-001 | G67: Post-it 5X8 | H67: Bolsa x 10 | I67: 15 | J67: 40 | K67: 600 | L67: 24
A68: 10 | B68: 2013-09-26 | C68: 2013-09-26 | D68: Miraflores | E68: Daniel | F68: P3-001 | G68: Post-it 3X3 | H68: Bolsa x 10 | I68: 10 | J68: 20 | K68: 200 | L68: 6
A69: 10 | B69: 2013-09-26 | C69: 2013-09-26 | D69: Miraflores | E69: Daniel | F69: S1-001 | G69: Sobre Manila A4 | H69: Ciento | I69: 25 | J69: 40 | K69: 1000 | L69: 40
A70: 11 | B70: 2013-10-06 | C70: 2013-10-06 | D70: Miraflores | E70: Alberto | F70: D1-001 | G70: CD-R Sony 700 MB | H70: Caja x 10 | I70: 2.5 | J70: 30 | K70: 75 | L70: 3
A71: 11 | B71: 2013-10-06 | C71: 2013-10-06 | D71: Miraflores | E71: Alberto | F71: L1-001 | G71: Lápiz Nº 2 Faber Castel | H71: Caja x 12 | I71: 3 | J71: 40 | K71: 120 | L71: 4.8
A72: 11 | B72: 2013-10-06 | C72: 2013-10-06 | D72: Miraflores | E72: Alberto | F72: P1-001 | G72: Post-it 5X5 | H72: Bolsa x 10 | I72: 12 | J72: 30 | K72: 360 | L72: 14.4
A73: 11 | B73: 2013-10-06 | C73: 2013-10-06 | D73: Miraflores | E73: Alberto | F73: P2-001 | G73: Post-it 5X8 | H73: Bolsa x 10 | I73: 15 | J73: 40 | K73: 600 | L73: 24
A74: 11 | B74: 2013-10-06 | C74: =B74 -> 2013-10-06 | D74: Miraflores | E74: Alberto | F74: P3-001 | G74: Post-it 3X3 | H74: Bolsa x 10 | I74: 10 | J74: 20 | K74: =I74*J74 -> 200 | L74: =IF(J74>=30,K74*4%,K74*3%) -> 6
A75: 11 | B75: 2013-10-06 | C75: 2013-10-06 | D75: Miraflores | E75: Alberto | F75: S1-001 | G75: Sobre Manila A4 | H75: Ciento | I75: 25 | J75: 30 | K75: 750 | L75: 30
A76: 12 | B76: 2013-10-16 | C76: 2013-10-16 | D76: Miraflores | E76: Daniel | F76: D1-001 | G76: CD-R Sony 700 MB | H76: Caja x 10 | I76: 2.5 | J76: 20 | K76: 50 | L76: 1.5
A77: 12 | B77: 2013-10-16 | C77: 2013-10-16 | D77: Miraflores | E77: Daniel | F77: L1-001 | G77: Lápiz Nº 2 Faber Castel | H77: Caja x 12 | I77: 3 | J77: 30 | K77: 90 | L77: 3.6
A78: 12 | B78: 2013-10-16 | C78: 2013-10-16 | D78: Miraflores | E78: Daniel | F78: P1-001 | G78: Post-it 5X5 | H78: Bolsa x 10 | I78: 12 | J78: 50 | K78: 600 | L78: 24
A79: 12 | B79: 2013-10-16 | C79: 2013-10-16 | D79: Miraflores | E79: Daniel | F79: P2-001 | G79: Post-it 5X8 | H79: Bolsa x 10 | I79: 15 | J79: 60 | K79: 900 | L79: 36
A80: 12 | B80: 2013-10-16 | C80: 2013-10-16 | D80: Miraflores | E80: Daniel | F80: S1-001 | G80: Sobre Manila A4 | H80: Ciento | I80: 25 | J80: 40 | K80: 1000 | L80: 40
A81: 13 | B81: 2013-10-26 | C81: 2013-10-26 | D81: Miraflores | E81: Alberto | F81: D1-001 | G81: CD-R Sony 700 MB | H81: Caja x 10 | I81: 2.5 | J81: 10 | K81: 25 | L81: 0.75
A82: 13 | B82: 2013-10-26 | C82: 2013-10-26 | D82: Miraflores | E82: Alberto | F82: L1-001 | G82: Lápiz Nº 2 Faber Castel | H82: Caja x 12 | I82: 3 | J82: 20 | K82: 60 | L82: 1.8
A83: 13 | B83: 2013-10-26 | C83: 2013-10-26 | D83: Miraflores | E83: Alberto | F83: P1-001 | G83: Post-it 5X5 | H83: Bolsa x 10 | I83: 12 | J83: 10 | K83: 120 | L83: 3.6
A84: 13 | B84: 2013-10-26 | C84: 2013-10-26 | D84: Miraflores | E84: Alberto | F84: P2-001 | G84: Post-it 5X8 | H84: Bolsa x 10 | I84: 15 | J84: 20 | K84: 300 | L84: 9
A85: 13 | B85: 2013-10-26 | C85: 2013-10-26 | D85: Miraflores | E85: Alberto | F85: P3-001 | G85: Post-it 3X3 | H85: Bolsa x 10 | I85: 10 | J85: 30 | K85: 300 | L85: 12
A86: 13 | B86: 2013-10-26 | C86: 2013-10-26 | D86: Miraflores | E86: Alberto | F86: S1-001 | G86: Sobre Manila A4 | H86: Ciento | I86: 25 | J86: 10 | K86: 250 | L86: 7.5
A87: 14 | B87: 2013-11-05 | C87: 2013-11-05 | D87: Miraflores | E87: Daniel | F87: D1-001 | G87: CD-R Sony 700 MB | H87: Caja x 10 | I87: 2.5 | J87: 20 | K87: 50 | L87: 1.5
A88: 14 | B88: 2013-11-05 | C88: 2013-11-05 | D88: Miraflores | E88: Daniel | F88: L1-001 | G88: Lápiz Nº 2 Faber Castel | H88: Caja x 12 | I88: 3 | J88: 30 | K88: 90 | L88: 3.6
A89: 14 | B89: 2013-11-05 | C89: 2013-11-05 | D89: Miraflores | E89: Daniel | F89: P1-001 | G89: Post-it 5X5 | H89: Bolsa x 10 | I89: 12 | J89: 40 | K89: 480 | L89: 19.2
A90: 14 | B90: 2013-11-05 | C90: 2013-11-05 | D90: Miraflores | E90: Daniel | F90: P2-001 | G90: Post-it 5X8 | H90: Bolsa x 10 | I90: 15 | J90: 10 | K90: 150 | L90: 4.5
A91: 14 | B91: 2013-11-05 | C91: 2013-11-05 | D91: Miraflores | E91: Daniel | F91: P3-001 | G91: Post-it 3X3 | H91: Bolsa x 10 | I91: 10 | J91: 20 | K91: 200 | L91: 6
A92: 15 | B92: 2013-11-15 | C92: 2013-11-15 | D92: Miraflores | E92: Alberto | F92: D1-001 | G92: CD-R Sony 700 MB | H92: Caja x 10 | I92: 2.5 | J92: 30 | K92: 75 | L92: 3
A93: 15 | B93: 2013-11-15 | C93: 2013-11-15 | D93: Miraflores | E93: Alberto | F93: L1-001 | G93: Lápiz Nº 2 Faber Castel | H93: Caja x 12 | I93: 3 | J93: 40 | K93: 120 | L93: 4.8
A94: 15 | B94: 2013-11-15 | C94: 2013-11-15 | D94: Miraflores | E94: Alberto | F94: P1-001 | G94: Post-it 5X5 | H94: Bolsa x 10 | I94: 12 | J94: 50 | K94: 600 | L94: 24
A95: 15 | B95: 2013-11-15 | C95: 2013-11-15 | D95: Miraflores | E95: Alberto | F95: P2-001 | G95: Post-it 5X8 | H95: Bolsa x 10 | I95: 15 | J95: 70 | K95: 1050 | L95: 42
A96: 15 | B96: 2013-11-15 | C96: 2013-11-15 | D96: Miraflores | E96: Alberto | F96: P3-001 | G96: Post-it 3X3 | H96: Bolsa x 10 | I96: 10 | J96: 20 | K96: 200 | L96: 6
A97: 16 | B97: 2013-11-25 | C97: 2013-11-25 | D97: Miraflores | E97: Daniel | F97: D1-001 | G97: CD-R Sony 700 MB | H97: Caja x 10 | I97: 2.5 | J97: 30 | K97: 75 | L97: 3
A98: 16 | B98: 2013-11-25 | C98: 2013-11-25 | D98: Miraflores | E98: Daniel | F98: L1-001 | G98: Lápiz Nº 2 Faber Castel | H98: Caja x 12 | I98: 3 | J98: 20 | K98: 60 | L98: 1.8
A99: 16 | B99: 2013-11-25 | C99: 2013-11-25 | D99: Miraflores | E99: Daniel | F99: P1-001 | G99: Post-it 5X5 | H99: Bolsa x 10 | I99: 12 | J99: 50 | K99: 600 | L99: 24
A100: 16 | B100: 2013-11-25 | C100: 2013-11-25 | D100: Miraflores | E100: Daniel | F100: P2-001 | G100: Post-it 5X8 | H100: Bolsa x 10 | I100: 15 | J100: 20 | K100: 300 | L100: 9
A101: 16 | B101: 2013-11-25 | C101: 2013-11-25 | D101: Miraflores | E101: Daniel | F101: P3-001 | G101: Post-it 3X3 | H101: Bolsa x 10 | I101: 10 | J101: 40 | K101: 400 | L101: 16
A102: 16 | B102: 2013-11-25 | C102: 2013-11-25 | D102: Miraflores | E102: Daniel | F102: S1-001 | G102: Sobre Manila A4 | H102: Ciento | I102: 25 | J102: 50 | K102: 1250 | L102: 50
A103: 17 | B103: 2013-12-05 | C103: 2013-12-05 | D103: Miraflores | E103: Alberto | F103: D1-001 | G103: CD-R Sony 700 MB | H103: Caja x 10 | I103: 2.5 | J103: 20 | K103: 50 | L103: 1.5
A104: 17 | B104: 2013-12-05 | C104: 2013-12-05 | D104: Miraflores | E104: Alberto | F104: L1-001 | G104: Lápiz Nº 2 Faber Castel | H104: Caja x 12 | I104: 3 | J104: 30 | K104: 90 | L104: 3.6
A105: 17 | B105: 2013-12-05 | C105: 2013-12-05 | D105: Miraflores | E105: Alberto | F105: P1-001 | G105: Post-it 5X5 | H105: Bolsa x 10 | I105: 12 | J105: 20 | K105: 240 | L105: 7.2
A106: 17 | B106: 2013-12-05 | C106: =B106 -> 2013-12-05 | D106: Miraflores | E106: Alberto | F106: P2-001 | G106: Post-it 5X8 | H106: Bolsa x 10 | I106: 15 | J106: 30 | K106: =I106*J106 -> 450 | L106: =IF(J106>=30,K106*4%,K106*3%) -> 18
A107: 17 | B107: 2013-12-05 | C107: 2013-12-05 | D107: Miraflores | E107: Alberto | F107: P3-001 | G107: Post-it 3X3 | H107: Bolsa x 10 | I107: 10 | J107: 40 | K107: 400 | L107: 16
A108: 17 | B108: 2013-12-05 | C108: 2013-12-05 | D108: Miraflores | E108: Alberto | F108: S1-001 | G108: Sobre Manila A4 | H108: Ciento | I108: 25 | J108: 50 | K108: 1250 | L108: 50
A109: 18 | B109: 2013-12-15 | C109: 2013-12-15 | D109: Miraflores | E109: Daniel | F109: D1-001 | G109: CD-R Sony 700 MB | H109: Caja x 10 | I109: 2.5 | J109: 20 | K109: 50 | L109: 1.5
A110: 18 | B110: 2013-12-15 | C110: 2013-12-15 | D110: Miraflores | E110: Daniel | F110: L1-001 | G110: Lápiz Nº 2 Faber Castel | H110: Caja x 12 | I110: 3 | J110: 40 | K110: 120 | L110: 4.8
A111: 18 | B111: 2013-12-15 | C111: 2013-12-15 | D111: Miraflores | E111: Daniel | F111: P1-001 | G111: Post-it 5X5 | H111: Bolsa x 10 | I111: 12 | J111: 50 | K111: 600 | L111: 24
A112: 18 | B112: 2013-12-15 | C112: 2013-12-15 | D112: Miraflores | E112: Daniel | F112: P2-001 | G112: Post-it 5X8 | H112: Bolsa x 10 | I112: 15 | J112: 60 | K112: 900 | L112: 36
A113: 18 | B113: 2013-12-15 | C113: 2013-12-15 | D113: Miraflores | E113: Daniel | F113: P3-001 | G113: Post-it 3X3 | H113: Bolsa x 10 | I113: 10 | J113: 30 | K113: 300 | L113: 12
A114: 18 | B114: 2013-12-15 | C114: 2013-12-15 | D114: Miraflores | E114: Daniel | F114: S1-001 | G114: Sobre Manila A4 | H114: Ciento | I114: 25 | J114: 40 | K114: 1000 | L114: 40
A115: 19 | B115: 2013-12-25 | C115: 2013-12-25 | D115: Surco | E115: Piero | F115: D1-001 | G115: CD-R Sony 700 MB | H115: Caja x 10 | I115: 2.5 | J115: 10 | K115: 25 | L115: 0.75
A116: 19 | B116: 2013-12-25 | C116: 2013-12-25 | D116: Surco | E116: Piero | F116: L1-001 | G116: Lápiz Nº 2 Faber Castel | H116: Caja x 12 | I116: 3 | J116: 10 | K116: 30 | L116: 0.9
A117: 19 | B117: 2013-12-25 | C117: 2013-12-25 | D117: Surco | E117: Piero | F117: P1-001 | G117: Post-it 5X5 | H117: Bolsa x 10 | I117: 12 | J117: 10 | K117: 120 | L117: 3.6
A118: 19 | B118: 2013-12-25 | C118: 2013-12-25 | D118: Surco | E118: Piero | F118: P2-001 | G118: Post-it 5X8 | H118: Bolsa x 10 | I118: 15 | J118: 20 | K118: 300 | L118: 9
A119: 19 | B119: 2013-12-25 | C119: 2013-12-25 | D119: Surco | E119: Piero | F119: P3-001 | G119: Post-it 3X3 | H119: Bolsa x 10 | I119: 10 | J119: 10 | K119: 100 | L119: 3
A120: 19 | B120: 2013-12-25 | C120: 2013-12-25 | D120: Surco | E120: Piero | F120: S1-001 | G120: Sobre Manila A4 | H120: Ciento | I120: 25 | J120: 20 | K120: 500 | L120: 15
A121: 20 | B121: 2014-01-04 | C121: 2014-01-04 | D121: Surco | E121: Fabián | F121: D1-001 | G121: CD-R Sony 700 MB | H121: Caja x 10 | I121: 2.5 | J121: 10 | K121: 25 | L121: 0.75
A122: 20 | B122: 2014-01-04 | C122: 2014-01-04 | D122: Surco | E122: Fabián | F122: L1-001 | G122: Lápiz Nº 2 Faber Castel | H122: Caja x 12 | I122: 3 | J122: 10 | K122: 30 | L122: 0.9
A123: 20 | B123: 2014-01-04 | C123: 2014-01-04 | D123: Surco | E123: Fabián | F123: P1-001 | G123: Post-it 5X5 | H123: Bolsa x 10 | I123: 12 | J123: 10 | K123: 120 | L123: 3.6
A124: 20 | B124: 2014-01-04 | C124: 2014-01-04 | D124: Surco | E124: Fabián | F124: P2-001 | G124: Post-it 5X8 | H124: Bolsa x 10 | I124: 15 | J124: 10 | K124: 150 | L124: 4.5
A125: 20 | B125: 2014-01-04 | C125: 2014-01-04 | D125: Surco | E125: Fabián | F125: P3-001 | G125: Post-it 3X3 | H125: Bolsa x 10 | I125: 10 | J125: 10 | K125: 100 | L125: 3
A126: 21 | B126: 2013-01-14 | C126: 2013-01-14 | D126: Surco | E126: Piero | F126: D1-001 | G126: CD-R Sony 700 MB | H126: Caja x 10 | I126: 2.5 | J126: 30 | K126: 75 | L126: 3
A127: 21 | B127: 2013-01-14 | C127: 2013-01-14 | D127: Surco | E127: Piero | F127: L1-001 | G127: Lápiz Nº 2 Faber Castel | H127: Caja x 12 | I127: 3 | J127: 30 | K127: 90 | L127: 3.6
A128: 21 | B128: 2013-01-14 | C128: 2013-01-14 | D128: Surco | E128: Piero | F128: P1-001 | G128: Post-it 5X5 | H128: Bolsa x 10 | I128: 12 | J128: 40 | K128: 480 | L128: 19.2
A129: 21 | B129: 2013-01-14 | C129: 2013-01-14 | D129: Surco | E129: Piero | F129: P2-001 | G129: Post-it 5X8 | H129: Bolsa x 10 | I129: 15 | J129: 50 | K129: 750 | L129: 30
A130: 21 | B130: 2013-01-14 | C130: 2013-01-14 | D130: Surco | E130: Piero | F130: P3-001 | G130: Post-it 3X3 | H130: Bolsa x 10 | I130: 10 | J130: 30 | K130: 300 | L130: 12
A131: 21 | B131: 2013-01-14 | C131: 2013-01-14 | D131: Surco | E131: Piero | F131: S1-001 | G131: Sobre Manila A4 | H131: Ciento | I131: 25 | J131: 30 | K131: 750 | L131: 30
A132: 22 | B132: 2013-01-24 | C132: 2013-01-24 | D132: Surco | E132: Fabián | F132: D1-001 | G132: CD-R Sony 700 MB | H132: Caja x 10 | I132: 2.5 | J132: 20 | K132: 50 | L132: 1.5
A133: 22 | B133: 2013-01-24 | C133: 2013-01-24 | D133: Surco | E133: Fabián | F133: L1-001 | G133: Lápiz Nº 2 Faber Castel | H133: Caja x 12 | I133: 3 | J133: 30 | K133: 90 | L133: 3.6
A134: 22 | B134: 2013-01-24 | C134: 2013-01-24 | D134: Surco | E134: Fabián | F134: P1-001 | G134: Post-it 5X5 | H134: Bolsa x 10 | I134: 12 | J134: 10 | K134: 120 | L134: 3.6
A135: 22 | B135: 2013-01-24 | C135: 2013-01-24 | D135: Surco | E135: Fabián | F135: P2-001 | G135: Post-it 5X8 | H135: Bolsa x 10 | I135: 15 | J135: 10 | K135: 150 | L135: 4.5
A136: 22 | B136: 2013-01-24 | C136: 2013-01-24 | D136: Surco | E136: Fabián | F136: P3-001 | G136: Post-it 3X3 | H136: Bolsa x 10 | I136: 10 | J136: 20 | K136: 200 | L136: 6
A137: 22 | B137: 2013-01-24 | C137: 2013-01-24 | D137: Surco | E137: Fabián | F137: S1-001 | G137: Sobre Manila A4 | H137: Ciento | I137: 25 | J137: 20 | K137: 500 | L137: 15
A138: 23 | B138: 2013-02-03 | C138: =B138 -> 2013-02-03 | D138: Surco | E138: Piero | F138: D1-001 | G138: CD-R Sony 700 MB | H138: Caja x 10 | I138: 2.5 | J138: 40 | K138: =I138*J138 -> 100 | L138: =IF(J138>=30,K138*4%,K138*3%) -> 4
A139: 23 | B139: 2013-02-03 | C139: 2013-02-03 | D139: Surco | E139: Piero | F139: L1-001 | G139: Lápiz Nº 2 Faber Castel | H139: Caja x 12 | I139: 3 | J139: 30 | K139: 90 | L139: 3.6
A140: 23 | B140: 2013-02-03 | C140: 2013-02-03 | D140: Surco | E140: Piero | F140: P1-001 | G140: Post-it 5X5 | H140: Bolsa x 10 | I140: 12 | J140: 30 | K140: 360 | L140: 14.4
A141: 23 | B141: 2013-02-03 | C141: 2013-02-03 | D141: Surco | E141: Piero | F141: P2-001 | G141: Post-it 5X8 | H141: Bolsa x 10 | I141: 15 | J141: 40 | K141: 600 | L141: 24
A142: 23 | B142: 2013-02-03 | C142: 2013-02-03 | D142: Surco | E142: Piero | F142: P3-001 | G142: Post-it 3X3 | H142: Bolsa x 10 | I142: 10 | J142: 20 | K142: 200 | L142: 6
A143: 23 | B143: 2013-02-03 | C143: 2013-02-03 | D143: Surco | E143: Piero | F143: S1-001 | G143: Sobre Manila A4 | H143: Ciento | I143: 25 | J143: 20 | K143: 500 | L143: 15
A144: 24 | B144: 2013-02-13 | C144: 2013-02-13 | D144: Surco | E144: Fabián | F144: D1-001 | G144: CD-R Sony 700 MB | H144: Caja x 10 | I144: 2.5 | J144: 30 | K144: 75 | L144: 3
A145: 24 | B145: 2013-02-13 | C145: 2013-02-13 | D145: Surco | E145: Fabián | F145: L1-001 | G145: Lápiz Nº 2 Faber Castel | H145: Caja x 12 | I145: 3 | J145: 40 | K145: 120 | L145: 4.8
A146: 24 | B146: 2013-02-13 | C146: 2013-02-13 | D146: Surco | E146: Fabián | F146: P1-001 | G146: Post-it 5X5 | H146: Bolsa x 10 | I146: 12 | J146: 20 | K146: 240 | L146: 7.2
A147: 24 | B147: 2013-02-13 | C147: 2013-02-13 | D147: Surco | E147: Fabián | F147: P2-001 | G147: Post-it 5X8 | H147: Bolsa x 10 | I147: 15 | J147: 30 | K147: 450 | L147: 18
A148: 24 | B148: 2013-02-13 | C148: 2013-02-13 | D148: Surco | E148: Fabián | F148: P3-001 | G148: Post-it 3X3 | H148: Bolsa x 10 | I148: 10 | J148: 30 | K148: 300 | L148: 12
A149: 24 | B149: 2013-02-13 | C149: 2013-02-13 | D149: Surco | E149: Fabián | F149: S1-001 | G149: Sobre Manila A4 | H149: Ciento | I149: 25 | J149: 40 | K149: 1000 | L149: 40
A150: 25 | B150: 2013-02-23 | C150: 2013-02-23 | D150: Surco | E150: Piero | F150: D1-001 | G150: CD-R Sony 700 MB | H150: Caja x 10 | I150: 2.5 | J150: 20 | K150: 50 | L150: 1.5
A151: 25 | B151: 2013-02-23 | C151: 2013-02-23 | D151: Surco | E151: Piero | F151: L1-001 | G151: Lápiz Nº 2 Faber Castel | H151: Caja x 12 | I151: 3 | J151: 30 | K151: 90 | L151: 3.6
A152: 25 | B152: 2013-02-23 | C152: 2013-02-23 | D152: Surco | E152: Piero | F152: P1-001 | G152: Post-it 5X5 | H152: Bolsa x 10 | I152: 12 | J152: 50 | K152: 600 | L152: 24
A153: 25 | B153: 2013-02-23 | C153: 2013-02-23 | D153: Surco | E153: Piero | F153: P2-001 | G153: Post-it 5X8 | H153: Bolsa x 10 | I153: 15 | J153: 10 | K153: 150 | L153: 4.5
A154: 25 | B154: 2013-02-23 | C154: 2013-02-23 | D154: Surco | E154: Piero | F154: P3-001 | G154: Post-it 3X3 | H154: Bolsa x 10 | I154: 10 | J154: 40 | K154: 400 | L154: 16
A155: 25 | B155: 2013-02-23 | C155: 2013-02-23 | D155: Surco | E155: Piero | F155: S1-001 | G155: Sobre Manila A4 | H155: Ciento | I155: 25 | J155: 40 | K155: 1000 | L155: 40
A156: 26 | B156: 2013-03-05 | C156: 2013-03-05 | D156: Surco | E156: Fabián | F156: D1-001 | G156: CD-R Sony 700 MB | H156: Caja x 10 | I156: 2.5 | J156: 20 | K156: 50 | L156: 1.5
A157: 26 | B157: 2013-03-05 | C157: 2013-03-05 | D157: Surco | E157: Fabián | F157: L1-001 | G157: Lápiz Nº 2 Faber Castel | H157: Caja x 12 | I157: 3 | J157: 30 | K157: 90 | L157: 3.6
A158: 26 | B158: 2013-02-02 | C158: 2013-02-02 | D158: Surco | E158: Fabián | F158: P1-001 | G158: Post-it 5X5 | H158: Bolsa x 10 | I158: 12 | J158: 50 | K158: 600 | L158: 24
A159: 26 | B159: 2013-03-05 | C159: 2013-03-05 | D159: Surco | E159: Fabián | F159: P2-001 | G159: Post-it 5X8 | H159: Bolsa x 10 | I159: 15 | J159: 10 | K159: 150 | L159: 4.5
A160: 26 | B160: 2013-03-05 | C160: 2013-03-05 | D160: Surco | E160: Fabián | F160: P3-001 | G160: Post-it 3X3 | H160: Bolsa x 10 | I160: 10 | J160: 40 | K160: 400 | L160: 16
A161: 26 | B161: 2013-03-05 | C161: 2013-03-05 | D161: Surco | E161: Fabián | F161: S1-001 | G161: Sobre Manila A4 | H161: Ciento | I161: 25 | J161: 40 | K161: 1000 | L161: 40
A162: 27 | B162: 2013-03-14 | C162: 2013-03-14 | D162: Surco | E162: Piero | F162: D1-001 | G162: CD-R Sony 700 MB | H162: Caja x 10 | I162: 2.5 | J162: 30 | K162: 75 | L162: 3
A163: 27 | B163: 2013-03-14 | C163: 2013-03-14 | D163: Surco | E163: Piero | F163: L1-001 | G163: Lápiz Nº 2 Faber Castel | H163: Caja x 12 | I163: 3 | J163: 20 | K163: 60 | L163: 1.8
A164: 27 | B164: 2013-03-14 | C164: 2013-03-14 | D164: Surco | E164: Piero | F164: P1-001 | G164: Post-it 5X5 | H164: Bolsa x 10 | I164: 12 | J164: 20 | K164: 240 | L164: 7.2
A165: 27 | B165: 2013-03-14 | C165: 2013-03-14 | D165: Surco | E165: Piero | F165: P2-001 | G165: Post-it 5X8 | H165: Bolsa x 10 | I165: 15 | J165: 30 | K165: 450 | L165: 18
A166: 27 | B166: 2013-03-14 | C166: 2013-03-14 | D166: Surco | E166: Piero | F166: P3-001 | G166: Post-it 3X3 | H166: Bolsa x 10 | I166: 10 | J166: 30 | K166: 300 | L166: 12
A167: 27 | B167: 2013-03-14 | C167: 2013-03-14 | D167: Surco | E167: Piero | F167: S1-001 | G167: Sobre Manila A4 | H167: Ciento | I167: 25 | J167: 20 | K167: 500 | L167: 15
A168: 28 | B168: 2013-03-24 | C168: 2013-03-24 | D168: Surco | E168: Fabián | F168: D1-001 | G168: CD-R Sony 700 MB | H168: Caja x 10 | I168: 2.5 | J168: 40 | K168: 100 | L168: 4
A169: 28 | B169: 2013-03-24 | C169: 2013-03-24 | D169: Surco | E169: Fabián | F169: L1-001 | G169: Lápiz Nº 2 Faber Castel | H169: Caja x 12 | I169: 3 | J169: 30 | K169: 90 | L169: 3.6
A170: 28 | B170: 2013-03-24 | C170: =B170 -> 2013-03-24 | D170: Surco | E170: Fabián | F170: P1-001 | G170: Post-it 5X5 | H170: Bolsa x 10 | I170: 12 | J170: 30 | K170: =I170*J170 -> 360 | L170: =IF(J170>=30,K170*4%,K170*3%) -> 14.4
A171: 28 | B171: 2013-03-24 | C171: 2013-03-24 | D171: Surco | E171: Fabián | F171: P2-001 | G171: Post-it 5X8 | H171: Bolsa x 10 | I171: 15 | J171: 10 | K171: 150 | L171: 4.5
A172: 28 | B172: 2013-03-24 | C172: 2013-03-24 | D172: Surco | E172: Fabián | F172: P3-001 | G172: Post-it 3X3 | H172: Bolsa x 10 | I172: 10 | J172: 20 | K172: 200 | L172: 6
A173: 28 | B173: 2013-03-24 | C173: 2013-03-24 | D173: Surco | E173: Fabián | F173: S1-001 | G173: Sobre Manila A4 | H173: Ciento | I173: 25 | J173: 10 | K173: 250 | L173: 7.5
A174: 29 | B174: 2013-04-03 | C174: 2013-04-03 | D174: Surco | E174: Piero | F174: D1-001 | G174: CD-R Sony 700 MB | H174: Caja x 10 | I174: 2.5 | J174: 10 | K174: 25 | L174: 0.75
A175: 29 | B175: 2013-04-03 | C175: 2013-04-03 | D175: Surco | E175: Piero | F175: L1-001 | G175: Lápiz Nº 2 Faber Castel | H175: Caja x 12 | I175: 3 | J175: 10 | K175: 30 | L175: 0.9
A176: 29 | B176: 2013-04-03 | C176: 2013-04-03 | D176: Surco | E176: Piero | F176: P1-001 | G176: Post-it 5X5 | H176: Bolsa x 10 | I176: 12 | J176: 10 | K176: 120 | L176: 3.6
A177: 29 | B177: 2013-04-03 | C177: 2013-04-03 | D177: Surco | E177: Piero | F177: P2-001 | G177: Post-it 5X8 | H177: Bolsa x 10 | I177: 15 | J177: 20 | K177: 300 | L177: 9
A178: 29 | B178: 2013-04-03 | C178: 2013-04-03 | D178: Surco | E178: Piero | F178: P3-001 | G178: Post-it 3X3 | H178: Bolsa x 10 | I178: 10 | J178: 10 | K178: 100 | L178: 3
A179: 29 | B179: 2013-04-03 | C179: 2013-04-03 | D179: Surco | E179: Piero | F179: S1-001 | G179: Sobre Manila A4 | H179: Ciento | I179: 25 | J179: 20 | K179: 500 | L179: 15
A180: 30 | B180: 2013-04-13 | C180: 2013-04-13 | D180: Surco | E180: Fabián | F180: D1-001 | G180: CD-R Sony 700 MB | H180: Caja x 10 | I180: 2.5 | J180: 30 | K180: 75 | L180: 3
A181: 30 | B181: 2013-04-13 | C181: 2013-04-13 | D181: Surco | E181: Fabián | F181: L1-001 | G181: Lápiz Nº 2 Faber Castel | H181: Caja x 12 | I181: 3 | J181: 20 | K181: 60 | L181: 1.8
A182: 30 | B182: 2013-04-13 | C182: 2013-04-13 | D182: Surco | E182: Fabián | F182: P1-001 | G182: Post-it 5X5 | H182: Bolsa x 10 | I182: 12 | J182: 40 | K182: 480 | L182: 19.2
A183: 30 | B183: 2013-04-13 | C183: 2013-04-13 | D183: Surco | E183: Fabián | F183: P2-001 | G183: Post-it 5X8 | H183: Bolsa x 10 | I183: 15 | J183: 20 | K183: 300 | L183: 9
A184: 30 | B184: 2013-04-13 | C184: 2013-04-13 | D184: Surco | E184: Fabián | F184: P3-001 | G184: Post-it 3X3 | H184: Bolsa x 10 | I184: 10 | J184: 30 | K184: 300 | L184: 12
A185: 30 | B185: 2013-04-13 | C185: 2013-04-13 | D185: Surco | E185: Fabián | F185: S1-001 | G185: Sobre Manila A4 | H185: Ciento | I185: 25 | J185: 20 | K185: 500 | L185: 15

Sheet Ejercicio 3
A9: Nº Pedido | B9: Fecha | C9: Mes | D9: Sucursal | E9: Vendedor | F9: Código | G9: Artículo | H9: Unidad | I9: Precio Unitario | J9: Cantidad | K9: Ventas | L9: Comisión
A10: 21 | B10: 2013-01-14 | C10: =B10 -> 2013-01-14 | D10: Surco | E10: Piero | F10: P2-001 | G10: Post-it 5X8 | H10: Bolsa x 10 | I10: 15 | J10: 50 | K10: =I10*J10 -> 750 | L10: =IF(J10>=30,K10*4%,K10*3%) -> 30
A11: 21 | B11: 2013-01-14 | C11: 2013-01-14 | D11: Surco | E11: Piero | F11: P1-001 | G11: Post-it 5X5 | H11: Bolsa x 10 | I11: 12 | J11: 40 | K11: 480 | L11: 19.2
A12: 21 | B12: 2013-01-14 | C12: 2013-01-14 | D12: Surco | E12: Piero | F12: D1-001 | G12: CD-R Sony 700 MB | H12: Caja x 10 | I12: 2.5 | J12: 30 | K12: 75 | L12: 3
A13: 21 | B13: 2013-01-14 | C13: 2013-01-14 | D13: Surco | E13: Piero | F13: L1-001 | G13: Lápiz Nº 2 Faber Castel | H13: Caja x 12 | I13: 3 | J13: 30 | K13: 90 | L13: 3.6
A14: 21 | B14: 2013-01-14 | C14: 2013-01-14 | D14: Surco | E14: Piero | F14: P3-001 | G14: Post-it 3X3 | H14: Bolsa x 10 | I14: 10 | J14: 30 | K14: 300 | L14: 12
A15: 21 | B15: 2013-01-14 | C15: 2013-01-14 | D15: Surco | E15: Piero | F15: S1-001 | G15: Sobre Manila A4 | H15: Ciento | I15: 25 | J15: 30 | K15: 750 | L15: 30
A16: 22 | B16: 2013-01-24 | C16: 2013-01-24 | D16: Surco | E16: Fabián | F16: L1-001 | G16: Lápiz Nº 2 Faber Castel | H16: Caja x 12 | I16: 3 | J16: 30 | K16: 90 | L16: 3.6
A17: 22 | B17: 2013-01-24 | C17: 2013-01-24 | D17: Surco | E17: Fabián | F17: D1-001 | G17: CD-R Sony 700 MB | H17: Caja x 10 | I17: 2.5 | J17: 20 | K17: 50 | L17: 1.5
A18: 22 | B18: 2013-01-24 | C18: 2013-01-24 | D18: Surco | E18: Fabián | F18: P3-001 | G18: Post-it 3X3 | H18: Bolsa x 10 | I18: 10 | J18: 20 | K18: 200 | L18: 6
A19: 22 | B19: 2013-01-24 | C19: 2013-01-24 | D19: Surco | E19: Fabián | F19: S1-001 | G19: Sobre Manila A4 | H19: Ciento | I19: 25 | J19: 20 | K19: 500 | L19: 15
A20: 22 | B20: 2013-01-24 | C20: 2013-01-24 | D20: Surco | E20: Fabián | F20: P1-001 | G20: Post-it 5X5 | H20: Bolsa x 10 | I20: 12 | J20: 10 | K20: 120 | L20: 3.6
A21: 22 | B21: 2013-01-24 | C21: 2013-01-24 | D21: Surco | E21: Fabián | F21: P2-001 | G21: Post-it 5X8 | H21: Bolsa x 10 | I21: 15 | J21: 10 | K21: 150 | L21: 4.5
A22: 26 | B22: 2013-02-02 | C22: 2013-02-02 | D22: Surco | E22: Fabián | F22: P1-001 | G22: Post-it 5X5 | H22: Bolsa x 10 | I22: 12 | J22: 50 | K22: 600 | L22: 24
A23: 23 | B23: 2013-02-03 | C23: 2013-02-03 | D23: Surco | E23: Piero | F23: D1-001 | G23: CD-R Sony 700 MB | H23: Caja x 10 | I23: 2.5 | J23: 40 | K23: 100 | L23: 4
A24: 23 | B24: 2013-02-03 | C24: 2013-02-03 | D24: Surco | E24: Piero | F24: P2-001 | G24: Post-it 5X8 | H24: Bolsa x 10 | I24: 15 | J24: 40 | K24: 600 | L24: 24
A25: 23 | B25: 2013-02-03 | C25: 2013-02-03 | D25: Surco | E25: Piero | F25: L1-001 | G25: Lápiz Nº 2 Faber Castel | H25: Caja x 12 | I25: 3 | J25: 30 | K25: 90 | L25: 3.6
A26: 23 | B26: 2013-02-03 | C26: 2013-02-03 | D26: Surco | E26: Piero | F26: P1-001 | G26: Post-it 5X5 | H26: Bolsa x 10 | I26: 12 | J26: 30 | K26: 360 | L26: 14.4
A27: 23 | B27: 2013-02-03 | C27: 2013-02-03 | D27: Surco | E27: Piero | F27: P3-001 | G27: Post-it 3X3 | H27: Bolsa x 10 | I27: 10 | J27: 20 | K27: 200 | L27: 6
A28: 23 | B28: 2013-02-03 | C28: 2013-02-03 | D28: Surco | E28: Piero | F28: S1-001 | G28: Sobre Manila A4 | H28: Ciento | I28: 25 | J28: 20 | K28: 500 | L28: 15
A29: 24 | B29: 2013-02-13 | C29: 2013-02-13 | D29: Surco | E29: Fabián | F29: L1-001 | G29: Lápiz Nº 2 Faber Castel | H29: Caja x 12 | I29: 3 | J29: 40 | K29: 120 | L29: 4.8
A30: 24 | B30: 2013-02-13 | C30: 2013-02-13 | D30: Surco | E30: Fabián | F30: S1-001 | G30: Sobre Manila A4 | H30: Ciento | I30: 25 | J30: 40 | K30: 1000 | L30: 40
A31: 24 | B31: 2013-02-13 | C31: 2013-02-13 | D31: Surco | E31: Fabián | F31: D1-001 | G31: CD-R Sony 700 MB | H31: Caja x 10 | I31: 2.5 | J31: 30 | K31: 75 | L31: 3
A32: 24 | B32: 2013-02-13 | C32: 2013-02-13 | D32: Surco | E32: Fabián | F32: P3-001 | G32: Post-it 3X3 | H32: Bolsa x 10 | I32: 10 | J32: 30 | K32: 300 | L32: 12
A33: 24 | B33: 2013-02-13 | C33: 2013-02-13 | D33: Surco | E33: Fabián | F33: P2-001 | G33: Post-it 5X8 | H33: Bolsa x 10 | I33: 15 | J33: 30 | K33: 450 | L33: 18
A34: 24 | B34: 2013-02-13 | C34: 2013-02-13 | D34: Surco | E34: Fabián | F34: P1-001 | G34: Post-it 5X5 | H34: Bolsa x 10 | I34: 12 | J34: 20 | K34: 240 | L34: 7.2
A35: 25 | B35: 2013-02-23 | C35: 2013-02-23 | D35: Surco | E35: Piero | F35: P1-001 | G35: Post-it 5X5 | H35: Bolsa x 10 | I35: 12 | J35: 50 | K35: 600 | L35: 24
A36: 25 | B36: 2013-02-23 | C36: 2013-02-23 | D36: Surco | E36: Piero | F36: P3-001 | G36: Post-it 3X3 | H36: Bolsa x 10 | I36: 10 | J36: 40 | K36: 400 | L36: 16
A37: 25 | B37: 2013-02-23 | C37: 2013-02-23 | D37: Surco | E37: Piero | F37: S1-001 | G37: Sobre Manila A4 | H37: Ciento | I37: 25 | J37: 40 | K37: 1000 | L37: 40
A38: 25 | B38: 2013-02-23 | C38: 2013-02-23 | D38: Surco | E38: Piero | F38: L1-001 | G38: Lápiz Nº 2 Faber Castel | H38: Caja x 12 | I38: 3 | J38: 30 | K38: 90 | L38: 3.6
A39: 25 | B39: 2013-02-23 | C39: 2013-02-23 | D39: Surco | E39: Piero | F39: D1-001 | G39: CD-R Sony 700 MB | H39: Caja x 10 | I39: 2.5 | J39: 20 | K39: 50 | L39: 1.5
A40: 25 | B40: 2013-02-23 | C40: 2013-02-23 | D40: Surco | E40: Piero | F40: P2-001 | G40: Post-it 5X8 | H40: Bolsa x 10 | I40: 15 | J40: 10 | K40: 150 | L40: 4.5
A41: 26 | B41: 2013-03-05 | C41: 2013-03-05 | D41: Surco | E41: Fabián | F41: P3-001 | G41: Post-it 3X3 | H41: Bolsa x 10 | I41: 10 | J41: 40 | K41: 400 | L41: 16
A42: 26 | B42: 2013-03-05 | C42: 2013-03-05 | D42: Surco | E42: Fabián | F42: S1-001 | G42: Sobre Manila A4 | H42: Ciento | I42: 25 | J42: 40 | K42: 1000 | L42: 40
A43: 26 | B43: 2013-03-05 | C43: 2013-03-05 | D43: Surco | E43: Fabián | F43: L1-001 | G43: Lápiz Nº 2 Faber Castel | H43: Caja x 12 | I43: 3 | J43: 30 | K43: 90 | L43: 3.6
A44: 26 | B44: 2013-03-05 | C44: 2013-03-05 | D44: Surco | E44: Fabián | F44: D1-001 | G44: CD-R Sony 700 MB | H44: Caja x 10 | I44: 2.5 | J44: 20 | K44: 50 | L44: 1.5
A45: 26 | B45: 2013-03-05 | C45: 2013-03-05 | D45: Surco | E45: Fabián | F45: P2-001 | G45: Post-it 5X8 | H45: Bolsa x 10 | I45: 15 | J45: 10 | K45: 150 | L45: 4.5
A46: 27 | B46: 2013-03-14 | C46: 2013-03-14 | D46: Surco | E46: Piero | F46: D1-001 | G46: CD-R Sony 700 MB | H46: Caja x 10 | I46: 2.5 | J46: 30 | K46: 75 | L46: 3
A47: 27 | B47: 2013-03-14 | C47: 2013-03-14 | D47: Surco | E47: Piero | F47: P3-001 | G47: Post-it 3X3 | H47: Bolsa x 10 | I47: 10 | J47: 30 | K47: 300 | L47: 12
A48: 27 | B48: 2013-03-14 | C48: 2013-03-14 | D48: Surco | E48: Piero | F48: P2-001 | G48: Post-it 5X8 | H48: Bolsa x 10 | I48: 15 | J48: 30 | K48: 450 | L48: 18
A49: 27 | B49: 2013-03-14 | C49: 2013-03-14 | D49: Surco | E49: Piero | F49: L1-001 | G49: Lápiz Nº 2 Faber Castel | H49: Caja x 12 | I49: 3 | J49: 20 | K49: 60 | L49: 1.8
A50: 27 | B50: 2013-03-14 | C50: 2013-03-14 | D50: Surco | E50: Piero | F50: P1-001 | G50: Post-it 5X5 | H50: Bolsa x 10 | I50: 12 | J50: 20 | K50: 240 | L50: 7.2
A51: 27 | B51: 2013-03-14 | C51: 2013-03-14 | D51: Surco | E51: Piero | F51: S1-001 | G51: Sobre Manila A4 | H51: Ciento | I51: 25 | J51: 20 | K51: 500 | L51: 15
A52: 28 | B52: 2013-03-24 | C52: 2013-03-24 | D52: Surco | E52: Fabián | F52: D1-001 | G52: CD-R Sony 700 MB | H52: Caja x 10 | I52: 2.5 | J52: 40 | K52: 100 | L52: 4
A53: 28 | B53: 2013-03-24 | C53: 2013-03-24 | D53: Surco | E53: Fabián | F53: L1-001 | G53: Lápiz Nº 2 Faber Castel | H53: Caja x 12 | I53: 3 | J53: 30 | K53: 90 | L53: 3.6
A54: 28 | B54: 2013-03-24 | C54: 2013-03-24 | D54: Surco | E54: Fabián | F54: P1-001 | G54: Post-it 5X5 | H54: Bolsa x 10 | I54: 12 | J54: 30 | K54: 360 | L54: 14.4
A55: 28 | B55: 2013-03-24 | C55: 2013-03-24 | D55: Surco | E55: Fabián | F55: P3-001 | G55: Post-it 3X3 | H55: Bolsa x 10 | I55: 10 | J55: 20 | K55: 200 | L55: 6
A56: 28 | B56: 2013-03-24 | C56: 2013-03-24 | D56: Surco | E56: Fabián | F56: P2-001 | G56: Post-it 5X8 | H56: Bolsa x 10 | I56: 15 | J56: 10 | K56: 150 | L56: 4.5
A57: 28 | B57: 2013-03-24 | C57: 2013-03-24 | D57: Surco | E57: Fabián | F57: S1-001 | G57: Sobre Manila A4 | H57: Ciento | I57: 25 | J57: 10 | K57: 250 | L57: 7.5
A58: 29 | B58: 2013-04-03 | C58: 2013-04-03 | D58: Surco | E58: Piero | F58: P2-001 | G58: Post-it 5X8 | H58: Bolsa x 10 | I58: 15 | J58: 20 | K58: 300 | L58: 9
A59: 29 | B59: 2013-04-03 | C59: 2013-04-03 | D59: Surco | E59: Piero | F59: S1-001 | G59: Sobre Manila A4 | H59: Ciento | I59: 25 | J59: 20 | K59: 500 | L59: 15
A60: 29 | B60: 2013-04-03 | C60: 2013-04-03 | D60: Surco | E60: Piero | F60: D1-001 | G60: CD-R Sony 700 MB | H60: Caja x 10 | I60: 2.5 | J60: 10 | K60: 25 | L60: 0.75
A61: 29 | B61: 2013-04-03 | C61: 2013-04-03 | D61: Surco | E61: Piero | F61: L1-001 | G61: Lápiz Nº 2 Faber Castel | H61: Caja x 12 | I61: 3 | J61: 10 | K61: 30 | L61: 0.9
A62: 29 | B62: 2013-04-03 | C62: 2013-04-03 | D62: Surco | E62: Piero | F62: P3-001 | G62: Post-it 3X3 | H62: Bolsa x 10 | I62: 10 | J62: 10 | K62: 100 | L62: 3
A63: 29 | B63: 2013-04-03 | C63: 2013-04-03 | D63: Surco | E63: Piero | F63: P1-001 | G63: Post-it 5X5 | H63: Bolsa x 10 | I63: 12 | J63: 10 | K63: 120 | L63: 3.6
A64: 30 | B64: 2013-04-13 | C64: 2013-04-13 | D64: Surco | E64: Fabián | F64: P1-001 | G64: Post-it 5X5 | H64: Bolsa x 10 | I64: 12 | J64: 40 | K64: 480 | L64: 19.2
A65: 30 | B65: 2013-04-13 | C65: 2013-04-13 | D65: Surco | E65: Fabián | F65: D1-001 | G65: CD-R Sony 700 MB | H65: Caja x 10 | I65: 2.5 | J65: 30 | K65: 75 | L65: 3
A66: 30 | B66: 2013-04-13 | C66: 2013-04-13 | D66: Surco | E66: Fabián | F66: P3-001 | G66: Post-it 3X3 | H66: Bolsa x 10 | I66: 10 | J66: 30 | K66: 300 | L66: 12
A67: 30 | B67: 2013-04-13 | C67: 2013-04-13 | D67: Surco | E67: Fabián | F67: L1-001 | G67: Lápiz Nº 2 Faber Castel | H67: Caja x 12 | I67: 3 | J67: 20 | K67: 60 | L67: 1.8
A68: 30 | B68: 2013-04-13 | C68: 2013-04-13 | D68: Surco | E68: Fabián | F68: P2-001 | G68: Post-it 5X8 | H68: Bolsa x 10 | I68: 15 | J68: 20 | K68: 300 | L68: 9
A69: 30 | B69: 2013-04-13 | C69: 2013-04-13 | D69: Surco | E69: Fabián | F69: S1-001 | G69: Sobre Manila A4 | H69: Ciento | I69: 25 | J69: 20 | K69: 500 | L69: 15
A70: 1 | B70: 2013-06-28 | C70: 2013-06-28 | D70: Lima | E70: Josué | F70: L1-001 | G70: Lápiz Nº 2 Faber Castel | H70: Caja x 12 | I70: 3 | J70: 30 | K70: 90 | L70: 3.6
A71: 1 | B71: 2013-06-28 | C71: 2013-06-28 | D71: Lima | E71: Josué | F71: P3-001 | G71: Post-it 3X3 | H71: Bolsa x 10 | I71: 10 | J71: 30 | K71: 300 | L71: 12
A72: 1 | B72: 2013-06-28 | C72: 2013-06-28 | D72: Lima | E72: Josué | F72: P1-001 | G72: Post-it 5X5 | H72: Bolsa x 10 | I72: 12 | J72: 30 | K72: 360 | L72: 14.4
A73: 1 | B73: 2013-06-28 | C73: 2013-06-28 | D73: Lima | E73: Josué | F73: D1-001 | G73: CD-R Sony 700 MB | H73: Caja x 10 | I73: 2.5 | J73: 20 | K73: 50 | L73: 1.5
A74: 1 | B74: 2013-06-28 | C74: =B74 -> 2013-06-28 | D74: Lima | E74: Josué | F74: P2-001 | G74: Post-it 5X8 | H74: Bolsa x 10 | I74: 15 | J74: 20 | K74: =I74*J74 -> 300 | L74: =IF(J74>=30,K74*4%,K74*3%) -> 9
A75: 1 | B75: 2013-06-28 | C75: 2013-06-28 | D75: Lima | E75: Josué | F75: S1-001 | G75: Sobre Manila A4 | H75: Ciento | I75: 25 | J75: 10 | K75: 250 | L75: 7.5
A76: 2 | B76: 2013-07-08 | C76: 2013-07-08 | D76: Lima | E76: Elías | F76: D1-001 | G76: CD-R Sony 700 MB | H76: Caja x 10 | I76: 2.5 | J76: 40 | K76: 100 | L76: 4
A77: 2 | B77: 2013-07-08 | C77: 2013-07-08 | D77: Lima | E77: Elías | F77: L1-001 | G77: Lápiz Nº 2 Faber Castel | H77: Caja x 12 | I77: 3 | J77: 30 | K77: 90 | L77: 3.6
A78: 2 | B78: 2013-07-08 | C78: 2013-07-08 | D78: Lima | E78: Elías | F78: P1-001 | G78: Post-it 5X5 | H78: Bolsa x 10 | I78: 12 | J78: 30 | K78: 360 | L78: 14.4
A79: 2 | B79: 2013-07-08 | C79: 2013-07-08 | D79: Lima | E79: Elías | F79: P3-001 | G79: Post-it 3X3 | H79: Bolsa x 10 | I79: 10 | J79: 20 | K79: 200 | L79: 6
A80: 2 | B80: 2013-07-08 | C80: 2013-07-08 | D80: Lima | E80: Elías | F80: P2-001 | G80: Post-it 5X8 | H80: Bolsa x 10 | I80: 15 | J80: 20 | K80: 300 | L80: 9
A81: 2 | B81: 2013-07-08 | C81: 2013-07-08 | D81: Lima | E81: Elías | F81: S1-001 | G81: Sobre Manila A4 | H81: Ciento | I81: 25 | J81: 10 | K81: 250 | L81: 7.5
A82: 3 | B82: 2013-07-18 | C82: 2013-07-18 | D82: Lima | E82: Josué | F82: P3-001 | G82: Post-it 3X3 | H82: Bolsa x 10 | I82: 10 | J82: 50 | K82: 500 | L82: 20
A83: 3 | B83: 2013-07-18 | C83: 2013-07-18 | D83: Lima | E83: Josué | F83: S1-001 | G83: Sobre Manila A4 | H83: Ciento | I83: 25 | J83: 50 | K83: 1250 | L83: 50
A84: 3 | B84: 2013-07-18 | C84: 2013-07-18 | D84: Lima | E84: Josué | F84: L1-001 | G84: Lápiz Nº 2 Faber Castel | H84: Caja x 12 | I84: 3 | J84: 40 | K84: 120 | L84: 4.8
A85: 3 | B85: 2013-07-18 | C85: 2013-07-18 | D85: Lima | E85: Josué | F85: P2-001 | G85: Post-it 5X8 | H85: Bolsa x 10 | I85: 15 | J85: 40 | K85: 600 | L85: 24
A86: 3 | B86: 2013-07-18 | C86: 2013-07-18 | D86: Lima | E86: Josué | F86: D1-001 | G86: CD-R Sony 700 MB | H86: Caja x 10 | I86: 2.5 | J86: 30 | K86: 75 | L86: 3
A87: 3 | B87: 2013-07-18 | C87: 2013-07-18 | D87: Lima | E87: Josué | F87: P1-001 | G87: Post-it 5X5 | H87: Bolsa x 10 | I87: 12 | J87: 30 | K87: 360 | L87: 14.4
A88: 4 | B88: 2013-07-28 | C88: 2013-07-28 | D88: Lima | E88: Elías | F88: P2-001 | G88: Post-it 5X8 | H88: Bolsa x 10 | I88: 15 | J88: 40 | K88: 600 | L88: 24
A89: 4 | B89: 2013-07-28 | C89: 2013-07-28 | D89: Lima | E89: Elías | F89: L1-001 | G89: Lápiz Nº 2 Faber Castel | H89: Caja x 12 | I89: 3 | J89: 30 | K89: 90 | L89: 3.6
A90: 4 | B90: 2013-07-28 | C90: 2013-07-28 | D90: Lima | E90: Elías | F90: P1-001 | G90: Post-it 5X5 | H90: Bolsa x 10 | I90: 12 | J90: 30 | K90: 360 | L90: 14.4
A91: 4 | B91: 2013-07-28 | C91: 2013-07-28 | D91: Lima | E91: Elías | F91: S1-001 | G91: Sobre Manila A4 | H91: Ciento | I91: 25 | J91: 30 | K91: 750 | L91: 30
A92: 4 | B92: 2013-07-28 | C92: 2013-07-28 | D92: Lima | E92: Elías | F92: D1-001 | G92: CD-R Sony 700 MB | H92: Caja x 10 | I92: 2.5 | J92: 20 | K92: 50 | L92: 1.5
A93: 4 | B93: 2013-07-28 | C93: 2013-07-28 | D93: Lima | E93: Elías | F93: P3-001 | G93: Post-it 3X3 | H93: Bolsa x 10 | I93: 10 | J93: 20 | K93: 200 | L93: 6
A94: 5 | B94: 2013-08-07 | C94: 2013-08-07 | D94: Lima | E94: Josué | F94: P1-001 | G94: Post-it 5X5 | H94: Bolsa x 10 | I94: 12 | J94: 40 | K94: 480 | L94: 19.2
A95: 5 | B95: 2013-08-07 | C95: 2013-08-07 | D95: Lima | E95: Josué | F95: L1-001 | G95: Lápiz Nº 2 Faber Castel | H95: Caja x 12 | I95: 3 | J95: 30 | K95: 90 | L95: 3.6
A96: 5 | B96: 2013-08-07 | C96: 2013-08-07 | D96: Lima | E96: Josué | F96: P3-001 | G96: Post-it 3X3 | H96: Bolsa x 10 | I96: 10 | J96: 30 | K96: 300 | L96: 12
A97: 5 | B97: 2013-08-07 | C97: 2013-08-07 | D97: Lima | E97: Josué | F97: S1-001 | G97: Sobre Manila A4 | H97: Ciento | I97: 25 | J97: 30 | K97: 750 | L97: 30
A98: 5 | B98: 2013-08-07 | C98: 2013-08-07 | D98: Lima | E98: Josué | F98: D1-001 | G98: CD-R Sony 700 MB | H98: Caja x 10 | I98: 2.5 | J98: 20 | K98: 50 | L98: 1.5
A99: 5 | B99: 2013-08-07 | C99: 2013-08-07 | D99: Lima | E99: Josué | F99: P2-001 | G99: Post-it 5X8 | H99: Bolsa x 10 | I99: 15 | J99: 20 | K99: 300 | L99: 9
A100: 6 | B100: 2013-08-17 | C100: 2013-08-17 | D100: Lima | E100: Elías | F100: P1-001 | G100: Post-it 5X5 | H100: Bolsa x 10 | I100: 12 | J100: 30 | K100: 360 | L100: 14.4
A101: 6 | B101: 2013-08-17 | C101: 2013-08-17 | D101: Lima | E101: Elías | F101: P2-001 | G101: Post-it 5X8 | H101: Bolsa x 10 | I101: 15 | J101: 30 | K101: 450 | L101: 18
A102: 6 | B102: 2013-08-17 | C102: 2013-08-17 | D102: Lima | E102: Elías | F102: D1-001 | G102: CD-R Sony 700 MB | H102: Caja x 10 | I102: 2.5 | J102: 20 | K102: 50 | L102: 1.5
A103: 6 | B103: 2013-08-17 | C103: 2013-08-17 | D103: Lima | E103: Elías | F103: L1-001 | G103: Lápiz Nº 2 Faber Castel | H103: Caja x 12 | I103: 3 | J103: 20 | K103: 60 | L103: 1.8
A104: 6 | B104: 2013-08-17 | C104: 2013-08-17 | D104: Lima | E104: Elías | F104: P3-001 | G104: Post-it 3X3 | H104: Bolsa x 10 | I104: 10 | J104: 20 | K104: 200 | L104: 6
A105: 6 | B105: 2013-08-17 | C105: 2013-08-17 | D105: Lima | E105: Elías | F105: S1-001 | G105: Sobre Manila A4 | H105: Ciento | I105: 25 | J105: 20 | K105: 500 | L105: 15
A106: 7 | B106: 2013-08-27 | C106: 2013-08-27 | D106: Lima | E106: Josué | F106: D1-001 | G106: CD-R Sony 700 MB | H106: Caja x 10 | I106: 2.5 | J106: 40 | K106: 100 | L106: 4
A107: 7 | B107: 2013-08-27 | C107: 2013-08-27 | D107: Lima | E107: Josué | F107: L1-001 | G107: Lápiz Nº 2 Faber Castel | H107: Caja x 12 | I107: 3 | J107: 30 | K107: 90 | L107: 3.6
A108: 7 | B108: 2013-08-27 | C108: 2013-08-27 | D108: Lima | E108: Josué | F108: P1-001 | G108: Post-it 5X5 | H108: Bolsa x 10 | I108: 12 | J108: 45 | K108: 540 | L108: 21.6
A109: 7 | B109: 2013-08-27 | C109: 2013-08-27 | D109: Lima | E109: Josué | F109: S1-001 | G109: Sobre Manila A4 | H109: Ciento | I109: 25 | J109: 30 | K109: 750 | L109: 30
A110: 7 | B110: 2013-08-27 | C110: 2013-08-27 | D110: Lima | E110: Josué | F110: P3-001 | G110: Post-it 3X3 | H110: Bolsa x 10 | I110: 10 | J110: 55 | K110: 550 | L110: 22
A111: 7 | B111: 2013-08-27 | C111: 2013-08-27 | D111: Lima | E111: Josué | F111: P2-001 | G111: Post-it 5X8 | H111: Bolsa x 10 | I111: 15 | J111: 20 | K111: 300 | L111: 9
A112: 8 | B112: 2013-09-06 | C112: 2013-09-06 | D112: Lima | E112: Elías | F112: P1-001 | G112: Post-it 5X5 | H112: Bolsa x 10 | I112: 12 | J112: 50 | K112: 600 | L112: 24
A113: 8 | B113: 2013-09-06 | C113: 2013-09-06 | D113: Lima | E113: Elías | F113: P3-001 | G113: Post-it 3X3 | H113: Bolsa x 10 | I113: 10 | J113: 40 | K113: 400 | L113: 16
A114: 8 | B114: 2013-09-06 | C114: 2013-09-06 | D114: Lima | E114: Elías | F114: S1-001 | G114: Sobre Manila A4 | H114: Ciento | I114: 25 | J114: 40 | K114: 1000 | L114: 40
A115: 8 | B115: 2013-09-06 | C115: 2013-09-06 | D115: Lima | E115: Elías | F115: L1-001 | G115: Lápiz Nº 2 Faber Castel | H115: Caja x 12 | I115: 3 | J115: 30 | K115: 90 | L115: 3.6
A116: 8 | B116: 2013-09-06 | C116: 2013-09-06 | D116: Lima | E116: Elías | F116: D1-001 | G116: CD-R Sony 700 MB | H116: Caja x 10 | I116: 2.5 | J116: 20 | K116: 50 | L116: 1.5
A117: 8 | B117: 2013-09-06 | C117: 2013-09-06 | D117: Lima | E117: Elías | F117: P2-001 | G117: Post-it 5X8 | H117: Bolsa x 10 | I117: 15 | J117: 20 | K117: 300 | L117: 9
A118: 9 | B118: 2013-09-16 | C118: 2013-09-16 | D118: Miraflores | E118: Alberto | F118: P3-001 | G118: Post-it 3X3 | H118: Bolsa x 10 | I118: 10 | J118: 40 | K118: 400 | L118: 16
A119: 9 | B119: 2013-09-16 | C119: 2013-09-16 | D119: Miraflores | E119: Alberto | F119: L1-001 | G119: Lápiz Nº 2 Faber Castel | H119: Caja x 12 | I119: 3 | J119: 30 | K119: 90 | L119: 3.6
A120: 9 | B120: 2013-09-16 | C120: 2013-09-16 | D120: Miraflores | E120: Alberto | F120: P1-001 | G120: Post-it 5X5 | H120: Bolsa x 10 | I120: 12 | J120: 30 | K120: 360 | L120: 14.4
A121: 9 | B121: 2013-09-16 | C121: 2013-09-16 | D121: Miraflores | E121: Alberto | F121: S1-001 | G121: Sobre Manila A4 | H121: Ciento | I121: 25 | J121: 30 | K121: 750 | L121: 30
A122: 9 | B122: 2013-09-16 | C122: 2013-09-16 | D122: Miraflores | E122: Alberto | F122: D1-001 | G122: CD-R Sony 700 MB | H122: Caja x 10 | I122: 2.5 | J122: 20 | K122: 50 | L122: 1.5
A123: 9 | B123: 2013-09-16 | C123: 2013-09-16 | D123: Miraflores | E123: Alberto | F123: P2-001 | G123: Post-it 5X8 | H123: Bolsa x 10 | I123: 15 | J123: 20 | K123: 300 | L123: 9
A124: 10 | B124: 2013-09-26 | C124: 2013-09-26 | D124: Miraflores | E124: Daniel | F124: L1-001 | G124: Lápiz Nº 2 Faber Castel | H124: Caja x 12 | I124: 3 | J124: 40 | K124: 120 | L124: 4.8
A125: 10 | B125: 2013-09-26 | C125: 2013-09-26 | D125: Miraflores | E125: Daniel | F125: P2-001 | G125: Post-it 5X8 | H125: Bolsa x 10 | I125: 15 | J125: 40 | K125: 600 | L125: 24
A126: 10 | B126: 2013-09-26 | C126: 2013-09-26 | D126: Miraflores | E126: Daniel | F126: S1-001 | G126: Sobre Manila A4 | H126: Ciento | I126: 25 | J126: 40 | K126: 1000 | L126: 40
A127: 10 | B127: 2013-09-26 | C127: 2013-09-26 | D127: Miraflores | E127: Daniel | F127: D1-001 | G127: CD-R Sony 700 MB | H127: Caja x 10 | I127: 2.5 | J127: 30 | K127: 75 | L127: 3
A128: 10 | B128: 2013-09-26 | C128: 2013-09-26 | D128: Miraflores | E128: Daniel | F128: P1-001 | G128: Post-it 5X5 | H128: Bolsa x 10 | I128: 12 | J128: 30 | K128: 360 | L128: 14.4
A129: 10 | B129: 2013-09-26 | C129: 2013-09-26 | D129: Miraflores | E129: Daniel | F129: P3-001 | G129: Post-it 3X3 | H129: Bolsa x 10 | I129: 10 | J129: 20 | K129: 200 | L129: 6
A130: 11 | B130: 2013-10-06 | C130: 2013-10-06 | D130: Miraflores | E130: Alberto | F130: L1-001 | G130: Lápiz Nº 2 Faber Castel | H130: Caja x 12 | I130: 3 | J130: 40 | K130: 120 | L130: 4.8
A131: 11 | B131: 2013-10-06 | C131: 2013-10-06 | D131: Miraflores | E131: Alberto | F131: P2-001 | G131: Post-it 5X8 | H131: Bolsa x 10 | I131: 15 | J131: 40 | K131: 600 | L131: 24
A132: 11 | B132: 2013-10-06 | C132: 2013-10-06 | D132: Miraflores | E132: Alberto | F132: D1-001 | G132: CD-R Sony 700 MB | H132: Caja x 10 | I132: 2.5 | J132: 30 | K132: 75 | L132: 3
A133: 11 | B133: 2013-10-06 | C133: 2013-10-06 | D133: Miraflores | E133: Alberto | F133: P1-001 | G133: Post-it 5X5 | H133: Bolsa x 10 | I133: 12 | J133: 30 | K133: 360 | L133: 14.4
A134: 11 | B134: 2013-10-06 | C134: 2013-10-06 | D134: Miraflores | E134: Alberto | F134: S1-001 | G134: Sobre Manila A4 | H134: Ciento | I134: 25 | J134: 30 | K134: 750 | L134: 30
A135: 11 | B135: 2013-10-06 | C135: 2013-10-06 | D135: Miraflores | E135: Alberto | F135: P3-001 | G135: Post-it 3X3 | H135: Bolsa x 10 | I135: 10 | J135: 20 | K135: 200 | L135: 6
A136: 12 | B136: 2013-10-16 | C136: 2013-10-16 | D136: Miraflores | E136: Daniel | F136: P2-001 | G136: Post-it 5X8 | H136: Bolsa x 10 | I136: 15 | J136: 60 | K136: 900 | L136: 36
A137: 12 | B137: 2013-10-16 | C137: 2013-10-16 | D137: Miraflores | E137: Daniel | F137: P1-001 | G137: Post-it 5X5 | H137: Bolsa x 10 | I137: 12 | J137: 50 | K137: 600 | L137: 24
A138: 12 | B138: 2013-10-16 | C138: =B138 -> 2013-10-16 | D138: Miraflores | E138: Daniel | F138: S1-001 | G138: Sobre Manila A4 | H138: Ciento | I138: 25 | J138: 40 | K138: =I138*J138 -> 1000 | L138: =IF(J138>=30,K138*4%,K138*3%) -> 40
A139: 12 | B139: 2013-10-16 | C139: 2013-10-16 | D139: Miraflores | E139: Daniel | F139: L1-001 | G139: Lápiz Nº 2 Faber Castel | H139: Caja x 12 | I139: 3 | J139: 30 | K139: 90 | L139: 3.6
A140: 12 | B140: 2013-10-16 | C140: 2013-10-16 | D140: Miraflores | E140: Daniel | F140: D1-001 | G140: CD-R Sony 700 MB | H140: Caja x 10 | I140: 2.5 | J140: 20 | K140: 50 | L140: 1.5
A141: 13 | B141: 2013-10-26 | C141: 2013-10-26 | D141: Miraflores | E141: Alberto | F141: P3-001 | G141: Post-it 3X3 | H141: Bolsa x 10 | I141: 10 | J141: 30 | K141: 300 | L141: 12
A142: 13 | B142: 2013-10-26 | C142: 2013-10-26 | D142: Miraflores | E142: Alberto | F142: L1-001 | G142: Lápiz Nº 2 Faber Castel | H142: Caja x 12 | I142: 3 | J142: 20 | K142: 60 | L142: 1.8
A143: 13 | B143: 2013-10-26 | C143: 2013-10-26 | D143: Miraflores | E143: Alberto | F143: P2-001 | G143: Post-it 5X8 | H143: Bolsa x 10 | I143: 15 | J143: 20 | K143: 300 | L143: 9
A144: 13 | B144: 2013-10-26 | C144: 2013-10-26 | D144: Miraflores | E144: Alberto | F144: D1-001 | G144: CD-R Sony 700 MB | H144: Caja x 10 | I144: 2.5 | J144: 10 | K144: 25 | L144: 0.75
A145: 13 | B145: 2013-10-26 | C145: 2013-10-26 | D145: Miraflores | E145: Alberto | F145: P1-001 | G145: Post-it 5X5 | H145: Bolsa x 10 | I145: 12 | J145: 10 | K145: 120 | L145: 3.6
A146: 13 | B146: 2013-10-26 | C146: 2013-10-26 | D146: Miraflores | E146: Alberto | F146: S1-001 | G146: Sobre Manila A4 | H146: Ciento | I146: 25 | J146: 10 | K146: 250 | L146: 7.5
A147: 14 | B147: 2013-11-05 | C147: 2013-11-05 | D147: Miraflores | E147: Daniel | F147: P1-001 | G147: Post-it 5X5 | H147: Bolsa x 10 | I147: 12 | J147: 40 | K147: 480 | L147: 19.2
A148: 14 | B148: 2013-11-05 | C148: 2013-11-05 | D148: Miraflores | E148: Daniel | F148: L1-001 | G148: Lápiz Nº 2 Faber Castel | H148: Caja x 12 | I148: 3 | J148: 30 | K148: 90 | L148: 3.6
A149: 14 | B149: 2013-11-05 | C149: 2013-11-05 | D149: Miraflores | E149: Daniel | F149: D1-001 | G149: CD-R Sony 700 MB | H149: Caja x 10 | I149: 2.5 | J149: 20 | K149: 50 | L149: 1.5
A150: 14 | B150: 2013-11-05 | C150: 2013-11-05 | D150: Miraflores | E150: Daniel | F150: P3-001 | G150: Post-it 3X3 | H150: Bolsa x 10 | I150: 10 | J150: 20 | K150: 200 | L150: 6
A151: 14 | B151: 2013-11-05 | C151: 2013-11-05 | D151: Miraflores | E151: Daniel | F151: P2-001 | G151: Post-it 5X8 | H151: Bolsa x 10 | I151: 15 | J151: 10 | K151: 150 | L151: 4.5
A152: 15 | B152: 2013-11-15 | C152: 2013-11-15 | D152: Miraflores | E152: Alberto | F152: P2-001 | G152: Post-it 5X8 | H152: Bolsa x 10 | I152: 15 | J152: 70 | K152: 1050 | L152: 42
A153: 15 | B153: 2013-11-15 | C153: 2013-11-15 | D153: Miraflores | E153: Alberto | F153: P1-001 | G153: Post-it 5X5 | H153: Bolsa x 10 | I153: 12 | J153: 50 | K153: 600 | L153: 24
A154: 15 | B154: 2013-11-15 | C154: 2013-11-15 | D154: Miraflores | E154: Alberto | F154: L1-001 | G154: Lápiz Nº 2 Faber Castel | H154: Caja x 12 | I154: 3 | J154: 40 | K154: 120 | L154: 4.8
A155: 15 | B155: 2013-11-15 | C155: 2013-11-15 | D155: Miraflores | E155: Alberto | F155: D1-001 | G155: CD-R Sony 700 MB | H155: Caja x 10 | I155: 2.5 | J155: 30 | K155: 75 | L155: 3
A156: 15 | B156: 2013-11-15 | C156: 2013-11-15 | D156: Miraflores | E156: Alberto | F156: P3-001 | G156: Post-it 3X3 | H156: Bolsa x 10 | I156: 10 | J156: 20 | K156: 200 | L156: 6
A157: 16 | B157: 2013-11-25 | C157: 2013-11-25 | D157: Miraflores | E157: Daniel | F157: P1-001 | G157: Post-it 5X5 | H157: Bolsa x 10 | I157: 12 | J157: 50 | K157: 600 | L157: 24
A158: 16 | B158: 2013-11-25 | C158: 2013-11-25 | D158: Miraflores | E158: Daniel | F158: S1-001 | G158: Sobre Manila A4 | H158: Ciento | I158: 25 | J158: 50 | K158: 1250 | L158: 50
A159: 16 | B159: 2013-11-25 | C159: 2013-11-25 | D159: Miraflores | E159: Daniel | F159: P3-001 | G159: Post-it 3X3 | H159: Bolsa x 10 | I159: 10 | J159: 40 | K159: 400 | L159: 16
A160: 16 | B160: 2013-11-25 | C160: 2013-11-25 | D160: Miraflores | E160: Daniel | F160: D1-001 | G160: CD-R Sony 700 MB | H160: Caja x 10 | I160: 2.5 | J160: 30 | K160: 75 | L160: 3
A161: 16 | B161: 2013-11-25 | C161: 2013-11-25 | D161: Miraflores | E161: Daniel | F161: L1-001 | G161: Lápiz Nº 2 Faber Castel | H161: Caja x 12 | I161: 3 | J161: 20 | K161: 60 | L161: 1.8
A162: 16 | B162: 2013-11-25 | C162: 2013-11-25 | D162: Miraflores | E162: Daniel | F162: P2-001 | G162: Post-it 5X8 | H162: Bolsa x 10 | I162: 15 | J162: 20 | K162: 300 | L162: 9
A163: 17 | B163: 2013-12-05 | C163: 2013-12-05 | D163: Miraflores | E163: Alberto | F163: S1-001 | G163: Sobre Manila A4 | H163: Ciento | I163: 25 | J163: 50 | K163: 1250 | L163: 50
A164: 17 | B164: 2013-12-05 | C164: 2013-12-05 | D164: Miraflores | E164: Alberto | F164: P3-001 | G164: Post-it 3X3 | H164: Bolsa x 10 | I164: 10 | J164: 40 | K164: 400 | L164: 16
A165: 17 | B165: 2013-12-05 | C165: 2013-12-05 | D165: Miraflores | E165: Alberto | F165: L1-001 | G165: Lápiz Nº 2 Faber Castel | H165: Caja x 12 | I165: 3 | J165: 30 | K165: 90 | L165: 3.6
A166: 17 | B166: 2013-12-05 | C166: 2013-12-05 | D166: Miraflores | E166: Alberto | F166: P2-001 | G166: Post-it 5X8 | H166: Bolsa x 10 | I166: 15 | J166: 30 | K166: 450 | L166: 18
A167: 17 | B167: 2013-12-05 | C167: 2013-12-05 | D167: Miraflores | E167: Alberto | F167: D1-001 | G167: CD-R Sony 700 MB | H167: Caja x 10 | I167: 2.5 | J167: 20 | K167: 50 | L167: 1.5
A168: 17 | B168: 2013-12-05 | C168: 2013-12-05 | D168: Miraflores | E168: Alberto | F168: P1-001 | G168: Post-it 5X5 | H168: Bolsa x 10 | I168: 12 | J168: 20 | K168: 240 | L168: 7.2
A169: 18 | B169: 2013-12-15 | C169: 2013-12-15 | D169: Miraflores | E169: Daniel | F169: P2-001 | G169: Post-it 5X8 | H169: Bolsa x 10 | I169: 15 | J169: 60 | K169: 900 | L169: 36
A170: 18 | B170: 2013-12-15 | C170: 2013-12-15 | D170: Miraflores | E170: Daniel | F170: P1-001 | G170: Post-it 5X5 | H170: Bolsa x 10 | I170: 12 | J170: 50 | K170: 600 | L170: 24
A171: 18 | B171: 2013-12-15 | C171: 2013-12-15 | D171: Miraflores | E171: Daniel | F171: L1-001 | G171: Lápiz Nº 2 Faber Castel | H171: Caja x 12 | I171: 3 | J171: 40 | K171: 120 | L171: 4.8
A172: 18 | B172: 2013-12-15 | C172: 2013-12-15 | D172: Miraflores | E172: Daniel | F172: S1-001 | G172: Sobre Manila A4 | H172: Ciento | I172: 25 | J172: 40 | K172: 1000 | L172: 40
A173: 18 | B173: 2013-12-15 | C173: 2013-12-15 | D173: Miraflores | E173: Daniel | F173: P3-001 | G173: Post-it 3X3 | H173: Bolsa x 10 | I173: 10 | J173: 30 | K173: 300 | L173: 12
A174: 18 | B174: 2013-12-15 | C174: 2013-12-15 | D174: Miraflores | E174: Daniel | F174: D1-001 | G174: CD-R Sony 700 MB | H174: Caja x 10 | I174: 2.5 | J174: 20 | K174: 50 | L174: 1.5
A175: 19 | B175: 2013-12-25 | C175: 2013-12-25 | D175: Surco | E175: Piero | F175: P2-001 | G175: Post-it 5X8 | H175: Bolsa x 10 | I175: 15 | J175: 20 | K175: 300 | L175: 9
A176: 19 | B176: 2013-12-25 | C176: 2013-12-25 | D176: Surco | E176: Piero | F176: S1-001 | G176: Sobre Manila A4 | H176: Ciento | I176: 25 | J176: 20 | K176: 500 | L176: 15
A177: 19 | B177: 2013-12-25 | C177: 2013-12-25 | D177: Surco | E177: Piero | F177: D1-001 | G177: CD-R Sony 700 MB | H177: Caja x 10 | I177: 2.5 | J177: 10 | K177: 25 | L177: 0.75
A178: 19 | B178: 2013-12-25 | C178: 2013-12-25 | D178: Surco | E178: Piero | F178: L1-001 | G178: Lápiz Nº 2 Faber Castel | H178: Caja x 12 | I178: 3 | J178: 10 | K178: 30 | L178: 0.9
A179: 19 | B179: 2013-12-25 | C179: 2013-12-25 | D179: Surco | E179: Piero | F179: P3-001 | G179: Post-it 3X3 | H179: Bolsa x 10 | I179: 10 | J179: 10 | K179: 100 | L179: 3
A180: 19 | B180: 2013-12-25 | C180: 2013-12-25 | D180: Surco | E180: Piero | F180: P1-001 | G180: Post-it 5X5 | H180: Bolsa x 10 | I180: 12 | J180: 10 | K180: 120 | L180: 3.6
A181: 20 | B181: 2014-01-04 | C181: 2014-01-04 | D181: Surco | E181: Fabián | F181: D1-001 | G181: CD-R Sony 700 MB | H181: Caja x 10 | I181: 2.5 | J181: 10 | K181: 25 | L181: 0.75
A182: 20 | B182: 2014-01-04 | C182: 2014-01-04 | D182: Surco | E182: Fabián | F182: L1-001 | G182: Lápiz Nº 2 Faber Castel | H182: Caja x 12 | I182: 3 | J182: 10 | K182: 30 | L182: 0.9
A183: 20 | B183: 2014-01-04 | C183: 2014-01-04 | D183: Surco | E183: Fabián | F183: P3-001 | G183: Post-it 3X3 | H183: Bolsa x 10 | I183: 10 | J183: 10 | K183: 100 | L183: 3
A184: 20 | B184: 2014-01-04 | C184: 2014-01-04 | D184: Surco | E184: Fabián | F184: P1-001 | G184: Post-it 5X5 | H184: Bolsa x 10 | I184: 12 | J184: 10 | K184: 120 | L184: 3.6
A185: 20 | B185: 2014-01-04 | C185: 2014-01-04 | D185: Surco | E185: Fabián | F185: P2-001 | G185: Post-it 5X8 | H185: Bolsa x 10 | I185: 15 | J185: 10 | K185: 150 | L185: 4.5
